Workbook

Sheet Лист1
A1: 17 | B1: Предварительный реестр расходных обязательств Шарангского муниципального района на 2020-2022 г.г.
B3: Наименование полномочия, расходного обязательства | D3: Наименование муниципальной услуги (работы), код строки | E3: Правовое основание финансового обеспечения и расходования средств (нормативные правовые акт, договоры, соглашения) | K3: Код расхода по БК | M3: Объем средств на исполнение расходного обязательства
A4: ID_Form = 1000368 | E4: Российской Федерации | H4: субъекта Российской Федерации | M4: отчетный 2018год | O4: текущий 2019 год | P4: очередной 2020 год | Q4: плановый период
A5: 6 | E5: Наименование номер и дата | F5: Номер статьи (подстатьи), пункта (подпункта ) | G5: Дата вступления в силу и срок действия | H5: Наименование номер и дата | I5: Номер статьи (подстатьи), пункта (подпункта ) | J5: Дата вступления в силу и срок действия | K5: раздел | L5: подраздел | M5: по плану | N5: по факту исполнения | Q5: 2021 | R5: 2022
A6: 8 | C6: 1 | D6: 2 | E6: 3 | F6: 4 | G6: 5 | H6: 6 | I6: 7 | J6: 8 | K6: 12 | L6: 13 | M6: 14 | N6: 15 | O6: 16 | P6: 17 | Q6: 18 | R6: 19
A7: 29 | B7: 1. | C7: Расходные обязательства, возникшие в результате принятия нормативных правовых актов муниципального района, заключения договоров (соглашений), всего | D7: 1000 | E7: х | F7: х | G7: х | H7: х | I7: х | J7: х | K7: х | L7: х | M7: =SUM(M10+M76+M120+M180) -> 579543.6 | N7: 577727.6 | O7: 636275.5 | P7: 833287.5 | Q7: 586039.8 | R7: 572651.8
A8: 377 | C8: из них: | AB8: =U7 -> 0
B9: в том числе субсидии бюджетным учреждениям на финансовое обеспечение муниципального задания на оказание муниципальных услуг (выполнение работ) | M9: 289096.1 | N9: 289096.1 | O9: 322817.7 | P9: 344942.2 | Q9: 330746.3 | R9: 341399.7
B10: 1.1. | C10: Расходные обязательства, возникшие в результате принятия нормативных правовых актов муниципального района, заключения договоров (соглашений) в рамках реализации вопросов местного значения муниципального района, всего | D10: 1001 | E10: х | F10: х | G10: х | H10: х | I10: х | J10: х | K10: х | L10: х | M10: =SUM(M11:M75) -> 240703.3 | N10: 240331.2 | O10: 304676.4 | P10: 506938.4 | Q10: 271168.8 | R10: 254799
B11: 1.1.1. | C11: составление и рассмотрение проекта бюджета муниципального района, утверждение и исполнение бюджета муниципального района, осуществление контроля за его исполнением, составление и утверждение отчета об исполнении бюджета муниципального района | D11: 1002
B12: 1.1.2. | C12: установление, изменение и отмена местных налогов и сборов муниципального района | D12: 1003
B13: 1.1.3. | C13: владение, пользование и распоряжение имуществом, находящимся в муниципальной собственности муниципального района | D13: 1004 | E13: Федеральный закон от 06.10.2003 N 131-ФЗ "Об общих принципах организации местного самоуправления в Российской Федерации" | F13: ст.15п.1п.п.3 | G13: 06.10.2003 не ограничен | K13: 01 04 | L13: 13 12 | M13: =SUM([1]УФ!M12+[1]ОК!M12+[1]РОО!M12+[1]УСХ!M12+'[1]З С '!M12+[1]РА!M12) -> 502.9 | N13: =SUM([1]УФ!N12+[1]ОК!N12+[1]РОО!N12+[1]УСХ!N12+'[1]З С '!N12+[1]РА!N12) -> 502.9 | O13: =SUM([1]УФ!O12+[1]ОК!O12+[1]РОО!O12+[1]УСХ!O12+'[1]З С '!O12+[1]РА!O12) -> 438.2 | P13: =SUM([1]УФ!P12+[1]ОК!P12+[1]РОО!P12+[1]УСХ!P12+'[1]З С '!P12+[1]РА!P12) -> 905 | Q13: =SUM([1]УФ!Q12+[1]ОК!Q12+[1]РОО!Q12+[1]УСХ!Q12+'[1]З С '!Q12+[1]РА!Q12) -> 405 | R13: =SUM([1]УФ!R12+[1]ОК!R12+[1]РОО!R12+[1]УСХ!R12+'[1]З С '!R12+[1]РА!R12) -> 1413.8
B14: 1.1.4. | C14: организация в границах муниципального района электро- и газоснабжения поселений в пределах полномочий, установленных законодательством Российской Федерации | D14: 1005
B15: 1.1.5. | C15: дорожная деятельность в отношении автомобильных дорог местного значения вне границ населенных пунктов в границах муниципального района, осуществление муниципального контроля за сохранностью автомобильных дорог местного значения вне границ населенных пунктов в границах муниципального района, и обеспечение безопасности дорожного движения на них, а также осуществление иных полномочий в области использования автомобильных дорог и осуществления дорожной деятельности в соответствии с законодательством Российской Федерации | D15: 1006 | E15: Федеральный закон от 06.10.2003 N 131-ФЗ "Об общих принципах организации местного самоуправления в Российской Федерации" | F15: ст.15п.1 п.п.5 | G15: 08.11.2007 не ограничен | K15: 04 | L15: 09 | M15: =SUM([1]УФ!M14+[1]ОК!M14+[1]РОО!M14+[1]УСХ!M14+'[1]З С '!M14+[1]РА!M14) -> 0 | N15: =SUM([1]УФ!N14+[1]ОК!N14+[1]РОО!N14+[1]УСХ!N14+'[1]З С '!N14+[1]РА!N14) -> 0 | O15: =SUM([1]УФ!O14+[1]ОК!O14+[1]РОО!O14+[1]УСХ!O14+'[1]З С '!O14+[1]РА!O14) -> 1241.9 | P15: =SUM([1]УФ!P14+[1]ОК!P14+[1]РОО!P14+[1]УСХ!P14+'[1]З С '!P14+[1]РА!P14) -> 15253.4 | Q15: =SUM([1]УФ!Q14+[1]ОК!Q14+[1]РОО!Q14+[1]УСХ!Q14+'[1]З С '!Q14+[1]РА!Q14) -> 2867.2 | R15: =SUM([1]УФ!R14+[1]ОК!R14+[1]РОО!R14+[1]УСХ!R14+'[1]З С '!R14+[1]РА!R14) -> 2867.2
B16: 1.1.6. | C16: создание условий для предоставления транспортных услуг населению и организация транспортного обслуживания населения между поселениями в границах муниципального района | D16: 1007 | E16: Федеральный закон от 06.10.2003 N 131-ФЗ "Об общих принципах организации местного самоуправления в Российской Федерации" | F16: ст.15п.1п. п.6 | G16: 06.10.2003 не ограничен | K16: 04 | L16: 08 | M16: =SUM([1]УФ!M15+[1]ОК!M15+[1]РОО!M15+[1]УСХ!M15+'[1]З С '!M15+[1]РА!M15) -> 2107.2 | N16: =SUM([1]УФ!N15+[1]ОК!N15+[1]РОО!N15+[1]УСХ!N15+'[1]З С '!N15+[1]РА!N15) -> 2107.2 | O16: =SUM([1]УФ!O15+[1]ОК!O15+[1]РОО!O15+[1]УСХ!O15+'[1]З С '!O15+[1]РА!O15) -> 5960.8 | P16: =SUM([1]УФ!P15+[1]ОК!P15+[1]РОО!P15+[1]УСХ!P15+'[1]З С '!P15+[1]РА!P15) -> 3100 | Q16: =SUM([1]УФ!Q15+[1]ОК!Q15+[1]РОО!Q15+[1]УСХ!Q15+'[1]З С '!Q15+[1]РА!Q15) -> 3100 | R16: =SUM([1]УФ!R15+[1]ОК!R15+[1]РОО!R15+[1]УСХ!R15+'[1]З С '!R15+[1]РА!R15) -> 3100
B17: 1.1.7. | C17: участие в профилактике терроризма и экстремизма, а также в минимизации и (или) ликвидации последствий проявлений терроризма и экстремизма на территории муниципального района | D17: 1008
B18: 1.1.8. | C18: разработка и осуществление мер, направленных на укрепление межнационального и межконфессионального согласия, поддержку и развитие языков и культуры народов Российской Федерации, проживающих на территории муниципального района, реализацию прав национальных меньшинств, обеспечение социальной и культурной адаптации мигрантов, профилактику межнациональных (межэтнических) конфликтов | D18: 1009
B19: 1.1.9. | C19: участие в предупреждении и ликвидации последствий чрезвычайных ситуаций на территории муниципального района | D19: 1010 | E19: Федеральный закон от 06.10.2003 N 131-ФЗ "Об общих принципах организации местного самоуправления в Российской Федерации" | F19: ст.15п.1п. п.6 | G19: 06.10.2003 не ограничен | K19: 03 03 04 | L19: 09 10 10 | M19: =SUM([1]УФ!M18+[1]ОК!M18+[1]РОО!M18+[1]УСХ!M18+'[1]З С '!M18+[1]РА!M18) -> 5014.2 | N19: =SUM([1]УФ!N18+[1]ОК!N18+[1]РОО!N18+[1]УСХ!N18+'[1]З С '!N18+[1]РА!N18) -> 4890.5 | O19: =SUM([1]УФ!O18+[1]ОК!O18+[1]РОО!O18+[1]УСХ!O18+'[1]З С '!O18+[1]РА!O18) -> 5527.5 | P19: =SUM([1]УФ!P18+[1]ОК!P18+[1]РОО!P18+[1]УСХ!P18+'[1]З С '!P18+[1]РА!P18) -> 4773.6 | Q19: =SUM([1]УФ!Q18+[1]ОК!Q18+[1]РОО!Q18+[1]УСХ!Q18+'[1]З С '!Q18+[1]РА!Q18) -> 3769.9 | R19: =SUM([1]УФ!R18+[1]ОК!R18+[1]РОО!R18+[1]УСХ!R18+'[1]З С '!R18+[1]РА!R18) -> 3796.5
B20: 1.1.10. | C20: организация охраны общественного порядка на территории муниципального района муниципальной милицией | D20: 1011
B21: 1.1.11. | C21: предоставление помещения для работы на обслуживаемом административном участке муниципального района сотруднику, замещающему должность участкового уполномоченного полиции | D21: 1012
B22: 1.1.12. | C22: до 1 января 2017 года предоставление сотруднику, замещающему должность участкового уполномоченного полиции, и членам его семьи жилого помещения на период выполнения сотрудником обязанностей по указанной должности | D22: 1013
B23: 1.1.13. | C23: организация мероприятий межпоселенческого характера по охране окружающей среды | D23: 1014
B24: 1.1.14. | C24: организация предоставления общедоступного и бесплатного дошкольного, начального общего, основного общего, среднего общего образования по основным общеобразовательным программам в муниципальных образовательных организациях (за исключением полномочий по финансовому обеспечению реализации основных общеобразовательных программ в соответствии с федеральными государственными образовательными стандартами), организация предоставления дополнительного образования детей в муниципальных образовательных организациях (за исключением дополнительного образования детей, финансовое обеспечение которого осуществляется органами государственной власти субъекта Российской Федерации), создание условий для осуществления присмотра и ухода за детьми, содержания детей в муниципальных образовательных организациях, а также организация отдыха детей в каникулярное время | D24: 1.Присмотр и уход 2.Реализация основных общеобразовательных программ дошкольного образования 3.Реализация основных общеобразовательных программ начального общего образования 4.Реализация основных общеобразовательных программ основного общего образования 5.Реализация основных общеобразовательных программ среднего общего образования 6.Реализация дополнительных общеразвивающих программ 1015 | E24: Федеральный закон от 06.10.2003 N 131-ФЗ "Об общих принципах организации местного самоуправления в Российской Федерации" | F24: ст.15п.1 п. п.11 | G24: 02.07.2013 не ограничен | H24: Закон Нижегородской области от 28.11.2013 N 160-З "О предоставлении органам местного самоуправления муниципальных районов и городских округов Нижегородской области субвенций на исполнение полномочий в сфере общего образования" | J24: 2014-01-01 | K24: 04 07 07 07 07 | L24: 01 01 02 07 09 | M24: =SUM([1]УФ!M23+[1]ОК!M23+[1]РОО!M23+[1]УСХ!M23+'[1]З С '!M23+[1]РА!M23) -> 98904.2 | N24: =SUM([1]УФ!N23+[1]ОК!N23+[1]РОО!N23+[1]УСХ!N23+'[1]З С '!N23+[1]РА!N23) -> 98741.3 | O24: =SUM([1]УФ!O23+[1]ОК!O23+[1]РОО!O23+[1]УСХ!O23+'[1]З С '!O23+[1]РА!O23) -> 125685 | P24: =SUM([1]УФ!P23+[1]ОК!P23+[1]РОО!P23+[1]УСХ!P23+'[1]З С '!P23+[1]РА!P23) -> 322575 | Q24: =SUM([1]УФ!Q23+[1]ОК!Q23+[1]РОО!Q23+[1]УСХ!Q23+'[1]З С '!Q23+[1]РА!Q23) -> 144216.3 | R24: =SUM([1]УФ!R23+[1]ОК!R23+[1]РОО!R23+[1]УСХ!R23+'[1]З С '!R23+[1]РА!R23) -> 120400.5
B25: 1.1.15. | C25: создание условий для оказания медицинской помощи населению на территории муниципального района (за исключением территорий поселений, включенных в утвержденный Правительством Российской Федерации перечень территорий, население которых обеспечивается медицинской помощью в медицинских организациях, подведомственных федеральному органу исполнительной власти, осуществляющему функции по медико-санитарному обеспечению населения отдельных территорий) в соответствии с территориальной программой государственных гарантий бесплатного оказания гражданам медицинской помощи | D25: 1016
B26: 1.1.16. | C26: участие в организации деятельности по сбору (в том числе раздельному сбору), транспортированию, обработке, утилизации, обезвреживанию, захоронению твердых коммунальных отходов на территориях соответствующих муниципальных районов | D26: 1017
B27: 1.1.17. | C27: утверждение схем территориального планирования муниципального района, утверждение подготовленной на основе схемы территориального планирования муниципального района документации по планировке территории, ведение информационной системы обеспечения градостроительной деятельности, осуществляемой на территории муниципального района, резервирование и изъятие земельных участков в границах муниципального района для муниципальных нужд | D27: 1018
B28: 1.1.18. | C28: утверждение схемы размещения рекламных конструкций, выдача разрешений на установку и эксплуатацию рекламных конструкций на территории муниципального района, аннулирование таких разрешений, выдача предписаний о демонтаже самовольно установленных рекламных конструкций на территории муниципального района, осуществляемые в соответствии с Федеральным законом от 13 марта 2006 года № 38-ФЗ «О рекламе» | D28: 1019
B29: 1.1.19. | C29: формирование и содержание муниципального архива, включая хранение архивных фондов поселений | D29: 1020
B30: 1.1.20. | C30: содержание на территории муниципального района межпоселенческих мест захоронения, организация ритуальных услуг | D30: 1021
B31: 1.1.21. | C31: создание условий для обеспечения поселений, входящих в состав муниципального района, услугами связи, общественного питания, торговли и бытового обслуживания | D31: 1022
B32: 1.1.22. | C32: организация библиотечного обслуживания населения межпоселенческими библиотеками, комплектование и обеспечение сохранности их библиотечных фондов | D32: 1.Библиографическая обработка документов и создание каталогов 2.Библиотечное, библиографическое и информационное обслуживание пользователей библиотек 1023 | E32: Федеральный закон от 06.10.2003 N 131-ФЗ "Об общих принципах организации местного самоуправления в Российской Федерации" | F32: ст.15 п.1 пп.19 | G32: 31.12.2005 не ограничен | K32: 08 | L32: 01 | M32: =SUM([1]УФ!M31+[1]ОК!M31+[1]РОО!M31+[1]УСХ!M31+'[1]З С '!M31+[1]РА!M31) -> 14258.5 | N32: =SUM([1]УФ!N31+[1]ОК!N31+[1]РОО!N31+[1]УСХ!N31+'[1]З С '!N31+[1]РА!N31) -> 14258.6 | O32: =SUM([1]УФ!O31+[1]ОК!O31+[1]РОО!O31+[1]УСХ!O31+'[1]З С '!O31+[1]РА!O31) -> 14486.7 | P32: =SUM([1]УФ!P31+[1]ОК!P31+[1]РОО!P31+[1]УСХ!P31+'[1]З С '!P31+[1]РА!P31) -> 15377.4 | Q32: =SUM([1]УФ!Q31+[1]ОК!Q31+[1]РОО!Q31+[1]УСХ!Q31+'[1]З С '!Q31+[1]РА!Q31) -> 15301 | R32: =SUM([1]УФ!R31+[1]ОК!R31+[1]РОО!R31+[1]УСХ!R31+'[1]З С '!R31+[1]РА!R31) -> 15339
B33: 1.1.23. | C33: создание условий для обеспечения поселений, входящих в состав муниципального района, услугами по организации досуга и услугами организаций культуры | D33: 1.Организация деятельности клубных формирований и формирований самодеятельного народного творчества 2.Организация и проведение культурно-массовых мероприятий 1024 | E33: Федеральный закон от 06.10.2003 N 131-ФЗ "Об общих принципах организации местного самоуправления в Российской Федерации" | F33: ст.15 п.1 пп.19.1 | G33: 31.12.2005 не ограничен | K33: 08 08 10 12 | L33: 01 04 03 01 | M33: =SUM([1]УФ!M32+[1]ОК!M32+[1]РОО!M32+[1]УСХ!M32+'[1]З С '!M32+[1]РА!M32) -> 60892.7 | N33: =SUM([1]УФ!N32+[1]ОК!N32+[1]РОО!N32+[1]УСХ!N32+'[1]З С '!N32+[1]РА!N32) -> 60830.2 | O33: =SUM([1]УФ!O32+[1]ОК!O32+[1]РОО!O32+[1]УСХ!O32+'[1]З С '!O32+[1]РА!O32) -> 47344.7 | P33: =SUM([1]УФ!P32+[1]ОК!P32+[1]РОО!P32+[1]УСХ!P32+'[1]З С '!P32+[1]РА!P32) -> 48871.7 | Q33: =SUM([1]УФ!Q32+[1]ОК!Q32+[1]РОО!Q32+[1]УСХ!Q32+'[1]З С '!Q32+[1]РА!Q32) -> 46714.5 | R33: =SUM([1]УФ!R32+[1]ОК!R32+[1]РОО!R32+[1]УСХ!R32+'[1]З С '!R32+[1]РА!R32) -> 47856.6
B34: 1.1.24. | C34: создание условий для развития местного традиционного народного художественного творчества в поселениях, входящих в состав муниципального района | D34: 1025
B35: 1.1.25. | C35: сохранение, использование и популяризация объектов культурного наследия (памятников истории и культуры), находящихся в собственности муниципального района, охрана объектов культурного наследия (памятников истории и культуры) местного (муниципального) значения, расположенных на территории муниципального района | D35: 1.Формирование, учет, изучение, обеспечение физического сохранения и безопасности музейных предметов, музейных коллекций 2.Публичный показ музейных предметов, музейных коллекций 1026 | E35: Федеральный закон от 06.10.2003 N 131-ФЗ "Об общих принципах организации местного самоуправления в Российской Федерации" | F35: ст.15 п.1 пп.19.3 | G35: 22.10.2014 не ограничен | K35: 08 | L35: 01 | M35: =SUM([1]УФ!M34+[1]ОК!M34+[1]РОО!M34+[1]УСХ!M34+'[1]З С '!M34+[1]РА!M34) -> 1883.4 | N35: =SUM([1]УФ!N34+[1]ОК!N34+[1]РОО!N34+[1]УСХ!N34+'[1]З С '!N34+[1]РА!N34) -> 1883.4 | O35: =SUM([1]УФ!O34+[1]ОК!O34+[1]РОО!O34+[1]УСХ!O34+'[1]З С '!O34+[1]РА!O34) -> 1925.4 | P35: =SUM([1]УФ!P34+[1]ОК!P34+[1]РОО!P34+[1]УСХ!P34+'[1]З С '!P34+[1]РА!P34) -> 2043.5 | Q35: =SUM([1]УФ!Q34+[1]ОК!Q34+[1]РОО!Q34+[1]УСХ!Q34+'[1]З С '!Q34+[1]РА!Q34) -> 2018.7 | R35: =SUM([1]УФ!R34+[1]ОК!R34+[1]РОО!R34+[1]УСХ!R34+'[1]З С '!R34+[1]РА!R34) -> 2031
B36: 1.1.26. | C36: организация и осуществление мероприятий по территориальной обороне и гражданской обороне, защите населения и территории муниципального района от чрезвычайных ситуаций природного и техногенного характера | D36: 1027
B37: 1.1.27. | C37: создание, развитие и обеспечение охраны лечебно-оздоровительных местностей и курортов местного значения на территории муниципального района, а также осуществление муниципального контроля в области использования и охраны особо охраняемых природных территорий местного значения | D37: 1028
B38: 1.1.28. | C38: организация и осуществление мероприятий по мобилизационной подготовке муниципальных предприятий и учреждений, находящихся на территории муниципального района | D38: 1029
B39: 1.1.29. | C39: осуществление мероприятий по обеспечению безопасности людей на водных объектах, охране их жизни и здоровья | D39: 1030
B40: 1.1.30. | C40: создание условий для развития сельскохозяйственного производства в поселениях, расширения рынка сельскохозяйственной продукции, сырья и продовольствия, содействие развитию малого и среднего предпринимательства, оказание поддержки социально ориентированным некоммерческим организациям, благотворительной деятельности и добровольчеству | D40: 1031 | E40: Федеральный закон от 06.10.2003 N 131-ФЗ "Об общих принципах организации местного самоуправления в Российской Федерации" | F40: ст.15 п.1 пп.25 | G40: 31.12.2005 не ограничен | K40: 04 04 10 | L40: 05 12 06 | M40: =SUM([1]УФ!M39+[1]ОК!M39+[1]РОО!M39+[1]УСХ!M39+'[1]З С '!M39+[1]РА!M39) -> 770.4 | N40: =SUM([1]УФ!N39+[1]ОК!N39+[1]РОО!N39+[1]УСХ!N39+'[1]З С '!N39+[1]РА!N39) -> 770.4 | O40: =SUM([1]УФ!O39+[1]ОК!O39+[1]РОО!O39+[1]УСХ!O39+'[1]З С '!O39+[1]РА!O39) -> 968.5 | P40: =SUM([1]УФ!P39+[1]ОК!P39+[1]РОО!P39+[1]УСХ!P39+'[1]З С '!P39+[1]РА!P39) -> 776.8 | Q40: =SUM([1]УФ!Q39+[1]ОК!Q39+[1]РОО!Q39+[1]УСХ!Q39+'[1]З С '!Q39+[1]РА!Q39) -> 776.8 | R40: =SUM([1]УФ!R39+[1]ОК!R39+[1]РОО!R39+[1]УСХ!R39+'[1]З С '!R39+[1]РА!R39) -> 776.8
B41: 1.1.31. | C41: обеспечение условий для развития на территории муниципального района физической культуры, школьного спорта и массового спорта, организация проведения официальных физкультурно-оздоровительных и спортивных мероприятий муниципального района | D41: 1.Реализация дополнительных общеразвивающих программ 2. Реализация дополнительных предпрофессиональных программ в области физической культуры и спорта 3. Организация и проведение спортивно-оздоровительной работы по развитию физической культуры и спорта среди различных групп населения 4. Организация и проведение физкультурных и спортивных мероприятий в рамках Всероссийского физкультурно-спортивного комплекса "Готов к труду и обороне" (ГТО) (за исключением тестирования выполнения нормативов испытаний комплекса ГТО) 1032 | E41: Федеральный закон от 06.10.2003 N 131-ФЗ "Об общих принципах организации местного самоуправления в Российской Федерации" | F41: ст.15п.1 п п.25 | G41: 06.10.2003 не ограничен | K41: 11 | L41: 02 | M41: =SUM([1]УФ!M40+[1]ОК!M40+[1]РОО!M40+[1]УСХ!M40+'[1]З С '!M40+[1]РА!M40) -> 49516.4 | N41: =SUM([1]УФ!N40+[1]ОК!N40+[1]РОО!N40+[1]УСХ!N40+'[1]З С '!N40+[1]РА!N40) -> 49507.6 | O41: =SUM([1]УФ!O40+[1]ОК!O40+[1]РОО!O40+[1]УСХ!O40+'[1]З С '!O40+[1]РА!O40) -> 50915.8 | P41: =SUM([1]УФ!P40+[1]ОК!P40+[1]РОО!P40+[1]УСХ!P40+'[1]З С '!P40+[1]РА!P40) -> 56065.6 | Q41: =SUM([1]УФ!Q40+[1]ОК!Q40+[1]РОО!Q40+[1]УСХ!Q40+'[1]З С '!Q40+[1]РА!Q40) -> 50061.2 | R41: =SUM([1]УФ!R40+[1]ОК!R40+[1]РОО!R40+[1]УСХ!R40+'[1]З С '!R40+[1]РА!R40) -> 55043.1
B42: 1.1.32. | C42: организация и осуществление мероприятий межпоселенческого характера по работе с детьми и молодежью | D42: 1033
B43: 1.1.33. | C43: осуществление в пределах, установленных водным законодательством Российской Федерации, полномочий собственника водных объектов, установление правил использования водных объектов общего пользования для личных и бытовых нужд, включая обеспечение свободного доступа граждан к водным объектам общего пользования и их береговым полосам | D43: 1034
B44: 1.1.34. | C44: осуществление муниципального лесного контроля | D44: 1035
B45: 1.1.35. | C45: обеспечение выполнения работ, необходимых для создания искусственных земельных участков для нужд муниципального района, проведение открытого аукциона на право заключить договор о создании искусственного земельного участка в соответствии с федеральным законом | D45: 1036
B46: 1.1.36. | C46: осуществление мер по противодействию коррупции в границах муниципального района | D46: 1037 | E46: Федеральный закон от 06.10.2003 N 131-ФЗ "Об общих принципах организации местного самоуправления в Российской Федерации" | F46: ст.15 п.1 пп.33 | G46: 21.11.2011 не ограничен | K46: 01 | L46: 13 | M46: =SUM([1]УФ!M45+[1]ОК!M45+[1]РОО!M45+[1]УСХ!M45+'[1]З С '!M45+[1]РА!M45) -> 10.2 | N46: =SUM([1]УФ!N45+[1]ОК!N45+[1]РОО!N45+[1]УСХ!N45+'[1]З С '!N45+[1]РА!N45) -> 10.2 | O46: =SUM([1]УФ!O45+[1]ОК!O45+[1]РОО!O45+[1]УСХ!O45+'[1]З С '!O45+[1]РА!O45) -> 182.9 | P46: =SUM([1]УФ!P45+[1]ОК!P45+[1]РОО!P45+[1]УСХ!P45+'[1]З С '!P45+[1]РА!P45) -> 511.1 | Q46: =SUM([1]УФ!Q45+[1]ОК!Q45+[1]РОО!Q45+[1]УСХ!Q45+'[1]З С '!Q45+[1]РА!Q45) -> 511.1 | R46: =SUM([1]УФ!R45+[1]ОК!R45+[1]РОО!R45+[1]УСХ!R45+'[1]З С '!R45+[1]РА!R45) -> 511.1
B47: 1.1.37. | C47: присвоение адресов объектам адресации, изменение, аннулирование адресов, присвоение наименований элементам улично-дорожной сети (за исключением автомобильных дорог федерального значения, автомобильных дорог регионального или межмуниципального значения), наименований элементам планировочной структуры в границах межселенной территории муниципального района, изменение, аннулирование таких наименований, размещение информации в государственном адресном реестре | D47: 1038
B48: 1.1.38. | C48: осуществление муниципального земельного контроля на межселенной территории муниципального района | D48: 1039
B49: 1.1.39. | C49: организация в соответствии с Федеральным законом от 24 июля 2007 года № 221-ФЗ «О государственном кадастре недвижимости» выполнения комплексных кадастровых работ и утверждение карты-плана территории | D49: 1040
B50: 1.1.40. | C50: организация в границах сельского поселения электро-, тепло-, газо- и водоснабжения населения, водоотведения, снабжения населения топливом в пределах полномочий, установленных законодательством Российской Федерации | D50: 1041 | E50: Федеральный закон от 06.10.2003 N 131-ФЗ "Об общих принципах организации местного самоуправления в Российской Федерации" | F50: ст.15 п.1 пп.4 | G50: 06.10.2003 не ограничен | K50: 05 | L50: 02 | M50: =SUM([1]УФ!M49+[1]ОК!M49+[1]РОО!M49+[1]УСХ!M49+'[1]З С '!M49+[1]РА!M49) -> 4693.3 | N50: =SUM([1]УФ!N49+[1]ОК!N49+[1]РОО!N49+[1]УСХ!N49+'[1]З С '!N49+[1]РА!N49) -> 4679.8 | O50: =SUM([1]УФ!O49+[1]ОК!O49+[1]РОО!O49+[1]УСХ!O49+'[1]З С '!O49+[1]РА!O49) -> 40634 | P50: =SUM([1]УФ!P49+[1]ОК!P49+[1]РОО!P49+[1]УСХ!P49+'[1]З С '!P49+[1]РА!P49) -> 36070.3 | Q50: =SUM([1]УФ!Q49+[1]ОК!Q49+[1]РОО!Q49+[1]УСХ!Q49+'[1]З С '!Q49+[1]РА!Q49) -> 1019.7 | R50: =SUM([1]УФ!R49+[1]ОК!R49+[1]РОО!R49+[1]УСХ!R49+'[1]З С '!R49+[1]РА!R49) -> 1019.7
B51: 1.1.41. | C51: дорожная деятельность в отношении автомобильных дорог местного значения в границах населенных пунктов сельского поселения и обеспечение безопасности дорожного движения на них, включая создание и обеспечение функционирования парковок (парковочных мест), осуществление муниципального контроля за сохранностью автомобильных дорог местного значения в границах населенных пунктов сельского поселения, а также осуществление иных полномочий в области использования автомобильных дорог и осуществления дорожной деятельности в соответствии с законодательством Российской Федерации на территории сельского поселения | D51: 1042
B52: 1.1.42. | C52: обеспечение проживающих в сельском поселении и нуждающихся в жилых помещениях малоимущих граждан жилыми помещениями, организация строительства и содержания муниципального жилищного фонда, создание условий для жилищного строительства, осуществление муниципального жилищного контроля, а также иных полномочий органов местного самоуправления в соответствии с жилищным законодательством на территории сельского поселения | D52: 1043 | E52: Жилищный кодекс РФ 188-ФЗ от 29.12.2004 года | F52: ст.181 | G52: 29.12.2004 не ограничен | K52: 05 10 | L52: 01 03 | M52: =SUM([1]УФ!M51+[1]ОК!M51+[1]РОО!M51+[1]УСХ!M51+'[1]З С '!M51+[1]РА!M51) -> 2149.9 | N52: =SUM([1]УФ!N51+[1]ОК!N51+[1]РОО!N51+[1]УСХ!N51+'[1]З С '!N51+[1]РА!N51) -> 2149.1 | O52: =SUM([1]УФ!O51+[1]ОК!O51+[1]РОО!O51+[1]УСХ!O51+'[1]З С '!O51+[1]РА!O51) -> 9365 | P52: =SUM([1]УФ!P51+[1]ОК!P51+[1]РОО!P51+[1]УСХ!P51+'[1]З С '!P51+[1]РА!P51) -> 615 | Q52: =SUM([1]УФ!Q51+[1]ОК!Q51+[1]РОО!Q51+[1]УСХ!Q51+'[1]З С '!Q51+[1]РА!Q51) -> 407.4 | R52: =SUM([1]УФ!R51+[1]ОК!R51+[1]РОО!R51+[1]УСХ!R51+'[1]З С '!R51+[1]РА!R51) -> 643.7
B53: 1.1.43. | C53: создание условий для предоставления транспортных услуг населению и организация транспортного обслуживания населения в границах сельского поселения | D53: 1044
B54: 1.1.44. | C54: участие в профилактике терроризма и экстремизма, а также в минимизации и (или) ликвидации последствий проявлений терроризма и экстремизма в границах сельского поселения | D54: 1045
B55: 1.1.45. | C55: создание условий для реализации мер, направленных на укрепление межнационального и межконфессионального согласия, сохранение и развитие языков и культуры народов Российской Федерации, проживающих на территории сельского поселения, социальную и культурную адаптацию мигрантов, профилактику межнациональных (межэтнических) конфликтов на территории сельского поселения | D55: 1046
B56: 1.1.46. | C56: участие в предупреждении и ликвидации последствий чрезвычайных ситуаций в границах сельского поселения | D56: 1047
B57: 1.1.47. | C57: организация библиотечного обслуживания населения, комплектование и обеспечение сохранности библиотечных фондов библиотек сельского поселения | D57: 1048
B58: 1.1.48. | C58: сохранение, использование и популяризация объектов культурного наследия (памятников истории и культуры), находящихся в собственности сельского поселения, охрана объектов культурного наследия (памятников истории и культуры) местного (муниципального) значения, расположенных на территории сельского поселения | D58: 1049
B59: 1.1.49. | C59: создание условий для массового отдыха жителей сельского поселения и организация обустройства мест массового отдыха населения, включая обеспечение свободного доступа граждан к водным объектам общего пользования и их береговым полосам на территории сельского поселения | D59: 1050 | E59: Федеральный закон от 06.10.2003 N 131-ФЗ "Об общих принципах организации местного самоуправления в Российской Федерации" | F59: ст.15 п.1 пп.24 | G59: 06.10.2003 не ограничен
B60: 1.1.50. | C60: участие в организации деятельности по сбору (в том числе раздельному сбору), транспортированию, обработке, утилизации, обезвреживанию, захоронению твердых коммунальных отходов на территории сельского поселения | D60: 1051
B61: 1.1.51. | C61: использование, охрана, защита, воспроизводство лесов, лесов особо охраняемых природных территорий, расположенных в границах населенных пунктов сельского поселения | D61: 1052
B62: 1.1.52. | C62: утверждение генеральных планов сельского поселения, правил землепользования и застройки, утверждение подготовленной на основе генеральных планов сельского поселения документации по планировке территории, выдача разрешений на строительство (за исключением случаев, предусмотренных Градостроительным кодексом Российской Федерации, иными федеральными законами), разрешений на ввод объектов в эксплуатацию при осуществлении строительства, реконструкции объектов капитального строительства, расположенных на территории сельского поселения, утверждение местных нормативов градостроительного проектирования сельских поселений, резервирование земель и изъятие земельных участков в границах сельского поселения для муниципальных нужд, осуществление муниципального земельного контроля в границах сельского поселения, осуществление в случаях, предусмотренных Градостроительным кодексом Российской Федерации, осмотров зданий, сооружений и выдача рекомендаций об устранении выявленных в ходе таких осмотров нарушений на территории сельского поселения | D62: 1053
B63: 1.1.53. | C63: организация ритуальных услуг и содержание мест захоронения на территории сельского поселения | D63: 1054
B64: 1.1.54. | C64: организация и осуществление мероприятий по территориальной обороне и гражданской обороне, защите населения и территории сельского поселения от чрезвычайных ситуаций природного и техногенного характера на территории сельского поселения | D64: 1055
B65: 1.1.55. | C65: создание, содержание и организация деятельности аварийно-спасательных служб и (или) аварийно-спасательных формирований на территории сельского поселения | D65: 1056
B66: 1.1.56. | C66: осуществление мероприятий по обеспечению безопасности людей на водных объектах, охране их жизни и здоровья на территории сельского поселения | D66: 1057
B67: 1.1.57. | C67: создание, развитие и обеспечение охраны лечебно-оздоровительных местностей и курортов местного значения на территории сельского поселения, а также осуществление муниципального контроля в области использования и охраны особо охраняемых природных территорий местного значения на территории сельского поселения | D67: 1058
B68: 1.1.58. | C68: осуществление в пределах, установленных водным законодательством Российской Федерации, полномочий собственника водных объектов, информирование населения об ограничениях их использования на территории сельского поселения | D68: 1059
B69: 1.1.59. | C69: осуществление муниципального лесного контроля на территории сельского поселения | D69: 1060
B70: 1.1.60. | C70: предоставление помещения для работы на обслуживаемом административном участке сельского поселения сотруднику, замещающему должность участкового уполномоченного полиции на территории сельского поселения | D70: 1061
B71: 1.1.61. | C71: до 1 января 2017 года предоставление сотруднику, замещающему должность участкового уполномоченного полиции, и членам его семьи жилого помещения на период выполнения сотрудником обязанностей по указанной должности на территории сельского поселения на территории сельского поселения | D71: 1062
B72: 1.1.62. | C72: оказание поддержки социально ориентированным некоммерческим организациям в пределах полномочий, установленных статьями 31.1 и 31.3 Федерального закона от 12 января 1996 года № 7-ФЗ «О некоммерческих организациях» на территории сельского поселения | D72: 1063
B73: 1.1.63. | C73: обеспечение выполнения работ, необходимых для создания искусственных земельных участков для нужд сельского поселения, проведение открытого аукциона на право заключить договор о создании искусственного земельного участка в соответствии с федеральным законом на территории сельского поселения | D73: 1064
B74: 1.1.64. | C74: осуществление мер по противодействию коррупции в границах сельского поселения | D74: 1065
B75: 1.1.65. | C75: участие в соответствии с Федеральным законом от 24 июля 2007 года № 221-ФЗ «О государственном кадастре недвижимости» в выполнении комплексных кадастровых работ на территории сельского поселения | D75: 1066
B76: 1.2. | C76: Расходные обязательства, возникшие в результате принятия нормативных правовых актов муниципального района, заключения договоров (соглашений) в рамках реализации полномочий органов местного самоуправления муниципального района по решению вопросов местного значения муниципального района, всего | D76: 1100 | E76: х | F76: х | G76: х | H76: х | I76: х | J76: х | K76: х | L76: х | M76: =SUM(M77:M119) -> 48082 | N76: 47609.5 | O76: 52334.4 | P76: 59162.8 | Q76: 54430.7 | R76: 56255.9
B77: 1.2.1. | C77: функционирование органов местного самоуправления | D77: 1101 | E77: Федеральный закон от 02.03.2007 N 25-ФЗ "О муниципальной службе в Российской Федерации" | G77: 02.03.2007 не ограничен | H77: Закон Нижегородской области от 03.08.2007 № 99-З " О муниципальной службе в Нижегородской области" | I77: ст.25 | J77: 2007-08-03 | K77: 01 01 01 01 01 01 05 10 10 | L77: 03 04 06 07 11 13 03 01 03 | M77: =SUM([1]УФ!M76+[1]ОК!M76+[1]РОО!M76+[1]УСХ!M76+'[1]З С '!M76+[1]РА!M76) -> 39204.6 | N77: =SUM([1]УФ!N76+[1]ОК!N76+[1]РОО!N76+[1]УСХ!N76+'[1]З С '!N76+[1]РА!N76) -> 38732.1 | O77: =SUM([1]УФ!O76+[1]ОК!O76+[1]РОО!O76+[1]УСХ!O76+'[1]З С '!O76+[1]РА!O76) -> 43382.4 | P77: =SUM([1]УФ!P76+[1]ОК!P76+[1]РОО!P76+[1]УСХ!P76+'[1]З С '!P76+[1]РА!P76) -> 52367.9 | Q77: =SUM([1]УФ!Q76+[1]ОК!Q76+[1]РОО!Q76+[1]УСХ!Q76+'[1]З С '!Q76+[1]РА!Q76) -> 48508.2 | R77: =SUM([1]УФ!R76+[1]ОК!R76+[1]РОО!R76+[1]УСХ!R76+'[1]З С '!R76+[1]РА!R76) -> 50285.8
B78: 1.2.2. | C78: финансирование муниципальных учреждений | D78: 1102 | M78: =SUM([1]УФ!M77+[1]ОК!M77+[1]РОО!M77+[1]УСХ!M77+'[1]З С '!M77+[1]РА!M77) -> 3154.8 | N78: =SUM([1]УФ!N77+[1]ОК!N77+[1]РОО!N77+[1]УСХ!N77+'[1]З С '!N77+[1]РА!N77) -> 3154.8 | O78: =SUM([1]УФ!O77+[1]ОК!O77+[1]РОО!O77+[1]УСХ!O77+'[1]З С '!O77+[1]РА!O77) -> 3288.5 | P78: =SUM([1]УФ!P77+[1]ОК!P77+[1]РОО!P77+[1]УСХ!P77+'[1]З С '!P77+[1]РА!P77) -> 3471.7 | Q78: =SUM([1]УФ!Q77+[1]ОК!Q77+[1]РОО!Q77+[1]УСХ!Q77+'[1]З С '!Q77+[1]РА!Q77) -> 3471.7 | R78: =SUM([1]УФ!R77+[1]ОК!R77+[1]РОО!R77+[1]УСХ!R77+'[1]З С '!R77+[1]РА!R77) -> 3471.7
B79: 1.2.3. | C79: принятие устава муниципального образования и внесение в него изменений и дополнений, издание муниципальных правовых актов | D79: 1103
B80: 1.2.4. | C80: установление официальных символов муниципального образования | D80: 1104
B81: 1.2.5. | C81: создание муниципальных предприятий и учреждений, осуществление финансового обеспечения деятельности муниципальных казенных учреждений и финансового обеспечения выполнения муниципального задания бюджетными и автономными муниципальными учреждениями, а также осуществление закупок товаров, работ, услуг для обеспечения муниципальных нужд | D81: Организация предоставления государственных и муниципальных услуг в многофункциональных центрах предоставления государственных и муниципальных услуг 1105 | E81: Федеральный закон от 06.10.2003 N 131-ФЗ "Об общих принципах организации местного самоуправления в Российской Федерации" | F81: ст.17 п.1 пп.3 | G81: 08.05.2010 не ограничен | K81: 01 | L81: 13 | M81: =SUM([1]УФ!M80+[1]ОК!M80+[1]РОО!M80+[1]УСХ!M80+'[1]З С '!M80+[1]РА!M80) -> 3104.6 | N81: =SUM([1]УФ!N80+[1]ОК!N80+[1]РОО!N80+[1]УСХ!N80+'[1]З С '!N80+[1]РА!N80) -> 3104.6 | O81: =SUM([1]УФ!O80+[1]ОК!O80+[1]РОО!O80+[1]УСХ!O80+'[1]З С '!O80+[1]РА!O80) -> 3215.7 | P81: =SUM([1]УФ!P80+[1]ОК!P80+[1]РОО!P80+[1]УСХ!P80+'[1]З С '!P80+[1]РА!P80) -> 918.1 | Q81: =SUM([1]УФ!Q80+[1]ОК!Q80+[1]РОО!Q80+[1]УСХ!Q80+'[1]З С '!Q80+[1]РА!Q80) -> 0 | R81: =SUM([1]УФ!R80+[1]ОК!R80+[1]РОО!R80+[1]УСХ!R80+'[1]З С '!R80+[1]РА!R80) -> 0
B82: 1.2.6. | C82: установление тарифов на услуги, предоставляемые муниципальными предприятиями и учреждениями, и работы, выполняемые муниципальными предприятиями и учреждениями, если иное не предусмотрено федеральными законами | D82: 1106
B83: 1.2.7. | C83: регулирование тарифов на подключение к системе коммунальной инфраструктуры, тарифов организаций коммунального комплекса на подключение, надбавок к тарифам на товары и услуги организаций коммунального комплекса, надбавок к ценам (тарифам) для потребителей. | D83: 1107
B84: 1.2.8. | C84: полномочиями по организации теплоснабжения, предусмотренными Федеральным законом «О теплоснабжении» | D84: 1108
B85: 1.2.9. | C85: полномочиями в сфере водоснабжения и водоотведения, предусмотренными Федеральным законом «О водоснабжении и водоотведении» | D85: 1109
B86: 1.2.10. | C86: организационное и материально-техническое обеспечение подготовки и проведения муниципальных выборов, местного референдума, голосования по отзыву депутата, члена выборного органа местного самоуправления, выборного должностного лица местного самоуправления, голосования по вопросам изменения границ муниципального образования, преобразования муниципального образования | D86: 1110
B87: 1.2.11. | C87: принятие и организация выполнения планов и программ комплексного социально-экономического развития муниципального образования, а также организация сбора статистических показателей, характеризующих состояние экономики и социальной сферы муниципального образования, и предоставление указанных данных органам государственной власти в порядке, установленном Правительством Российской Федерации | D87: 1111
B88: 1.2.12. | C88: разработка и утверждение программ комплексного развития систем коммунальной инфраструктуры поселений, городских округов, программ комплексного развития транспортной инфраструктуры поселений, городских округов, программ комплексного развития социальной инфраструктуры поселений, городских округов, требования к которым устанавливаются Правительством Российской Федерации | D88: 1112
B89: 1.2.13. | C89: учреждение печатного средства массовой информации для опубликования муниципальных правовых актов, обсуждения проектов муниципальных правовых актов по вопросам местного значения, доведения до сведения жителей муниципального образования официальной информации о социально-экономическом и культурном развитии муниципального образования, о развитии его общественной инфраструктуры и иной официальной информации | D89: 1113 | E89: Федеральный закон от 06.10.2003 N 131-ФЗ "Об общих принципах организации местного самоуправления в Российской Федерации" | F89: ст.17 п.7 | G89: 31.12.2005 не ограничен | K89: 12 | L89: 02 | M89: =SUM([1]УФ!M88+[1]ОК!M88+[1]РОО!M88+[1]УСХ!M88+'[1]З С '!M88+[1]РА!M88) -> 2618 | N89: =SUM([1]УФ!N88+[1]ОК!N88+[1]РОО!N88+[1]УСХ!N88+'[1]З С '!N88+[1]РА!N88) -> 2618 | O89: =SUM([1]УФ!O88+[1]ОК!O88+[1]РОО!O88+[1]УСХ!O88+'[1]З С '!O88+[1]РА!O88) -> 2447.8 | P89: =SUM([1]УФ!P88+[1]ОК!P88+[1]РОО!P88+[1]УСХ!P88+'[1]З С '!P88+[1]РА!P88) -> 2405.1 | Q89: =SUM([1]УФ!Q88+[1]ОК!Q88+[1]РОО!Q88+[1]УСХ!Q88+'[1]З С '!Q88+[1]РА!Q88) -> 2450.8 | R89: =SUM([1]УФ!R88+[1]ОК!R88+[1]РОО!R88+[1]УСХ!R88+'[1]З С '!R88+[1]РА!R88) -> 2498.4
B90: 1.2.14. | C90: осуществление международных и внешнеэкономических связей в соответствии с федеральными законами | D90: 1114
B91: 1.2.15. | C91: организация профессионального образования и дополнительного профессионального образования выборных должностных лиц местного самоуправления, членов выборных органов местного самоуправления, депутатов представительных органов муниципальных образований, муниципальных служащих и работников муниципальных учреждений, организация подготовки кадров для муниципальной службы в порядке, предусмотренном законодательством Российской Федерации об образовании и законодательством Российской Федерации о муниципальной службе | D91: 1115
B92: 1.2.16. | C92: утверждение и реализация муниципальных программ в области энергосбережения и повышения энергетической эффективности, организация проведения энергетического обследования многоквартирных домов, помещения в которых составляют муниципальный жилищный фонд в границах муниципального образования, организация и проведение иных мероприятий, предусмотренных законодательством об энергосбережении и о повышении энергетической эффективности | D92: 1116
B93: 1.2.17. | C93: … | D93: 1117
B94: … | C94: … | D94: …
B95: 1.2.99. | C95: … | D95: 1199
B96: 1.3. | C96: Расходные обязательства, возникшие в результате принятия нормативных правовых актов муниципального района, заключения договоров (соглашений) в рамках реализации органами местного самоуправления муниципального района прав на решение вопросов, не отнесенных к вопросам местного значения муниципального района, всего | D96: 1200 | E96: х | F96: х | G96: х | H96: х | I96: х | J96: х | K96: х | L96: х
B97: 1.3.1. | C97: по перечню, предусмотренному Федеральным законом от 06.10.2003 № 131-ФЗ «Об общих принципах организации местного самоуправления в Российской Федерации», всего | D97: 1201 | E97: х | F97: х | G97: х | H97: х | I97: х | J97: х | K97: х | L97: х
B98: 1.3.1.1. | C98: создание музеев муниципального района | D98: 1202
B99: 1.3.1.2. | C99: участие в осуществлении деятельности по опеке и попечительству | D99: 1203
B100: 1.3.1.3. | C100: создание условий для осуществления деятельности, связанной с реализацией прав местных национально-культурных автономий на территории муниципального района | D100: 1204
B101: 1.3.1.4. | C101: оказание содействия национально-культурному развитию народов Российской Федерации и реализации мероприятий в сфере межнациональных отношений на территории муниципального района | D101: 1205
B102: 1.3.1.5. | C102: осуществление функций учредителя муниципальных образовательных организаций высшего образования, находящихся в их ведении по состоянию на 31 декабря 2008 года | D102: 1206
B103: 1.3.1.6. | C103: создание условий для развития туризма | D103: 1207
B104: 1.3.1.7. | C104: оказание поддержки общественным наблюдательным комиссиям, осуществляющим общественный контроль за обеспечением прав человека и содействие лицам, находящимся в местах принудительного содержания | D104: 1208
B105: 1.3.1.8. | C105: оказание поддержки общественным объединениям инвалидов, а также созданным общероссийскими общественными объединениями инвалидов организациям в соответствии с Федеральным законом от 24 ноября 1995 года № 181-ФЗ «О социальной защите инвалидов в Российской Федерации» | D105: 1209
B106: 1.3.1.9. | C106: осуществление мероприятий, предусмотренных Федеральным законом «О донорстве крови и ее компонентов» | D106: 1210
B107: 1.3.1.10. | C107: совершение нотариальных действий, предусмотренных законодательством, в случае отсутствия в расположенном на межселенной территории населенном пункте нотариуса | D107: 1211
B108: 1.3.1.11. | C108: создание условий для организации проведения независимой оценки качества оказания услуг организациями в порядке и на условиях, которые установлены федеральными законами | D108: 1212
B109: 1.3.1.12. | C109: … | D109: 1213
B110: … | C110: … | D110: …
B111: 1.3.1.98. | C111: … | D111: 1299
B112: 1.3.2. | C112: по участию в осуществлении государственных полномочий (не переданных в соответствии со статьей 19 Федерального закона от 06.10.2003 № 131-ФЗ «Об общих принципах организации местного самоуправления в Российской Федерации»), если это участие предусмотрено федеральными законами, всего | D112: 1300 | E112: х | F112: х | G112: х | H112: х | I112: х | J112: х | K112: х | L112: х
B113: 1.3.2.1. | C113: … | D113: 1301
B114: … | C114: … | D114: …
B115: 1.3.2.99 | C115: … | D115: 1399
B116: 1.3.3. | C116: по реализации вопросов, не отнесенных к компетенции органов местного самоуправления других муниципальных образований, органов государственной власти и не исключенных из их компетенции федеральными законами и законами субъектов Российской Федерации, всего | D116: 1400 | E116: х | F116: х | G116: х | H116: х | I116: х | J116: х | K116: х | L116: х
B117: 1.3.3.1. | C117: … | D117: 1401
B118: … | C118: … | D118: …
B119: 1.3.3.99. | C119: … | D119: 1499
B120: 1.4. | C120: Расходные обязательства, возникшие в результате принятия нормативных правовых актов муниципального района, заключения договоров (соглашений) в рамках реализации органами местного самоуправления муниципального района отдельных государственных полномочий, переданных органами государственной власти Российской Федерации и (или) органами государственной власти субъекта Российской | D120: 1500 | E120: х | F120: х | G120: х | H120: х | I120: х | J120: х | K120: х | L120: х | M120: =SUM(M122) -> 225489 | N120: 224524.1 | O120: 185030.7 | P120: 203526 | Q120: 202945.9 | R120: 203006.9
C121: Федерации, всего
B122: 1.4.1. | C122: за счет субвенций, предоставленных из федерального бюджета или бюджета субъекта Российской Федерации, всего | D122: 1501 | E122: х | F122: х | G122: х | H122: х | I122: х | J122: х | K122: х | L122: х | M122: =SUM(M123:M178) -> 225489 | N122: 224524.1 | O122: 185030.7 | P122: 203526 | Q122: 202945.9 | R122: 203006.9
B123: 1.4.1.1. | C123: Субвенции на возмещение части затрат сельскохозяйственных товаропроизводителей на уплату страховой премии, начисленной по договору сельскохозяйственного страхования в области животноводства, за счет средств областного бюджета | D123: 1502
B124: 1.4.1.2. | C124: Субвенции на исполнение полномочий в сфере общего образования в муниципальных дошкольных образовательных организациях | D124: 1.Присмотр и уход 2.Реализация основных общеобразовательных программ дошкольного образования 1503 | H124: Закон Нижегородской области от 28.11.2013 N 160-З "О предоставлении органам местного самоуправления муниципальных районов и городских округов Нижегородской области субвенций на исполнение полномочий в сфере общего образования" | I124: ст.6 п.2 | J124: 2013-11-28 | K124: 07 | L124: 01 | M124: =SUM([1]УФ!M123+[1]ОК!M123+[1]РОО!M123+[1]УСХ!M123+'[1]З С '!M123+[1]РА!M123) -> 50345.5 | N124: =SUM([1]УФ!N123+[1]ОК!N123+[1]РОО!N123+[1]УСХ!N123+'[1]З С '!N123+[1]РА!N123) -> 50345.5 | O124: =SUM([1]УФ!O123+[1]ОК!O123+[1]РОО!O123+[1]УСХ!O123+'[1]З С '!O123+[1]РА!O123) -> 51252.3 | P124: =SUM([1]УФ!P123+[1]ОК!P123+[1]РОО!P123+[1]УСХ!P123+'[1]З С '!P123+[1]РА!P123) -> 55643.8 | Q124: =SUM([1]УФ!Q123+[1]ОК!Q123+[1]РОО!Q123+[1]УСХ!Q123+'[1]З С '!Q123+[1]РА!Q123) -> 55643.8 | R124: =SUM([1]УФ!R123+[1]ОК!R123+[1]РОО!R123+[1]УСХ!R123+'[1]З С '!R123+[1]РА!R123) -> 55643.8
B125: 1.4.1.3. | C125: Субвенции на исполнение полномочий по финансовому обеспечению получения дошкольного образования в частных дошкольных образовательных организациях посредством предоставления указанным образовательным организациям субсидий на возмещение затрат, включая расходы на оплату труда, приобретение учебников и учебных пособий, средств обучения, игр, игрушек (за исключением расходов на содержание зданий и оплату коммунальных услуг) | D125: 1504
B126: 1.4.1.4. | C126: Субвенции на осуществление полномочий по созданию и организации деятельности муниципальных комиссий по делам несовершеннолетних и защите их прав | D126: 1505 | H126: Закон Нижегородской области от 26.10.2006 N 121-З "О комиссиях по делам несовершеннолетних и защите их прав в Нижегородской области" | I126: ст.7 | J126: 2006-10-26 | K126: 01 | L126: 04 | M126: =SUM([1]УФ!M125+[1]ОК!M125+[1]РОО!M125+[1]УСХ!M125+'[1]З С '!M125+[1]РА!M125) -> 452.9 | N126: =SUM([1]УФ!N125+[1]ОК!N125+[1]РОО!N125+[1]УСХ!N125+'[1]З С '!N125+[1]РА!N125) -> 452.9 | O126: =SUM([1]УФ!O125+[1]ОК!O125+[1]РОО!O125+[1]УСХ!O125+'[1]З С '!O125+[1]РА!O125) -> 458.7 | P126: =SUM([1]УФ!P125+[1]ОК!P125+[1]РОО!P125+[1]УСХ!P125+'[1]З С '!P125+[1]РА!P125) -> 472 | Q126: =SUM([1]УФ!Q125+[1]ОК!Q125+[1]РОО!Q125+[1]УСХ!Q125+'[1]З С '!Q125+[1]РА!Q125) -> 472 | R126: =SUM([1]УФ!R125+[1]ОК!R125+[1]РОО!R125+[1]УСХ!R125+'[1]З С '!R125+[1]РА!R125) -> 472
B127: 1.4.1.5. | C127: Субвенции на осуществление полномочий по поддержке сельскохозяйственного производства | D127: 1506 | H127: Закон Нижегородской области от 11.11.2005 N 176-З "О наделении органов местного самоуправления Нижегородской области отдельными государственными полномочиями по поддержке сельскохозяйственного производства" | I127: ст.5 | J127: 2005-11-11 | K127: 04 | L127: 05 | M127: =SUM([1]УФ!M126+[1]ОК!M126+[1]РОО!M126+[1]УСХ!M126+'[1]З С '!M126+[1]РА!M126) -> 3975.3 | N127: =SUM([1]УФ!N126+[1]ОК!N126+[1]РОО!N126+[1]УСХ!N126+'[1]З С '!N126+[1]РА!N126) -> 3975.3 | O127: =SUM([1]УФ!O126+[1]ОК!O126+[1]РОО!O126+[1]УСХ!O126+'[1]З С '!O126+[1]РА!O126) -> 4031.1 | P127: =SUM([1]УФ!P126+[1]ОК!P126+[1]РОО!P126+[1]УСХ!P126+'[1]З С '!P126+[1]РА!P126) -> 4922.2 | Q127: =SUM([1]УФ!Q126+[1]ОК!Q126+[1]РОО!Q126+[1]УСХ!Q126+'[1]З С '!Q126+[1]РА!Q126) -> 4142.2 | R127: =SUM([1]УФ!R126+[1]ОК!R126+[1]РОО!R126+[1]УСХ!R126+'[1]З С '!R126+[1]РА!R126) -> 4142.2
B128: 1.4.1.6. | C128: Субвенции на осуществление полномочий по организационно-техническому и информационно-методическому сопровождению аттестации педагогических работников муниципальных и частных организаций, осуществляющих образовательную деятельность, с целью установления соответствия уровня квалификации требованиям, предъявляемым к первой квалификационной категории | D128: 1507 | H128: Закон Нижегородской области от 21.10.2005 N 140-З "О наделении органов местного самоуправления отдельными государственными полномочиями в области образования" | I128: ст.5 п.4 | J128: 2005-10-21 | K128: 07 | L128: 09 | M128: =SUM([1]УФ!M127+[1]ОК!M127+[1]РОО!M127+[1]УСХ!M127+'[1]З С '!M127+[1]РА!M127) -> 611 | N128: =SUM([1]УФ!N127+[1]ОК!N127+[1]РОО!N127+[1]УСХ!N127+'[1]З С '!N127+[1]РА!N127) -> 582.2 | O128: =SUM([1]УФ!O127+[1]ОК!O127+[1]РОО!O127+[1]УСХ!O127+'[1]З С '!O127+[1]РА!O127) -> 600.5 | P128: =SUM([1]УФ!P127+[1]ОК!P127+[1]РОО!P127+[1]УСХ!P127+'[1]З С '!P127+[1]РА!P127) -> 619.9 | Q128: =SUM([1]УФ!Q127+[1]ОК!Q127+[1]РОО!Q127+[1]УСХ!Q127+'[1]З С '!Q127+[1]РА!Q127) -> 636.3 | R128: =SUM([1]УФ!R127+[1]ОК!R127+[1]РОО!R127+[1]УСХ!R127+'[1]З С '!R127+[1]РА!R127) -> 654.2
B129: 1.4.1.7. | C129: Субвенции на осуществление полномочий по организации и осуществлению деятельности по опеке и попечительству в отношении несовершеннолетних граждан | D129: 1508 | H129: Закон Нижегородской области от 07.09.2007 N 125-З "О наделении органов местного самоуправления муниципальных районов и городских округов Нижегородской области отдельными государственными полномочиями по организации и осуществлению деятельности по опеке и попечительству в отношении несовершеннолетних граждан" | J129: 2008-01-01 | K129: 07 | L129: 09 | M129: =SUM([1]УФ!M128+[1]ОК!M128+[1]РОО!M128+[1]УСХ!M128+'[1]З С '!M128+[1]РА!M128) -> 449.8 | N129: =SUM([1]УФ!N128+[1]ОК!N128+[1]РОО!N128+[1]УСХ!N128+'[1]З С '!N128+[1]РА!N128) -> 414.7 | O129: =SUM([1]УФ!O128+[1]ОК!O128+[1]РОО!O128+[1]УСХ!O128+'[1]З С '!O128+[1]РА!O128) -> 455.4 | P129: =SUM([1]УФ!P128+[1]ОК!P128+[1]РОО!P128+[1]УСХ!P128+'[1]З С '!P128+[1]РА!P128) -> 468.7 | Q129: =SUM([1]УФ!Q128+[1]ОК!Q128+[1]РОО!Q128+[1]УСХ!Q128+'[1]З С '!Q128+[1]РА!Q128) -> 468.7 | R129: =SUM([1]УФ!R128+[1]ОК!R128+[1]РОО!R128+[1]УСХ!R128+'[1]З С '!R128+[1]РА!R128) -> 468.7
B130: 1.4.1.8. | C130: Субвенции на исполнение полномочий в сфере общего образования в муниципальных общеобразовательных организациях | D130: 1509 | H130: Закон Нижегородской области от 28.11.2013 N 160-З "О предоставлении органам местного самоуправления муниципальных районов и городских округов Нижегородской области субвенций на исполнение полномочий в сфере общего образования" | I130: ст.6 п.2 | J130: 2013-11-28 | K130: 07 | L130: 02 | M130: =SUM([1]УФ!M129+[1]ОК!M129+[1]РОО!M129+[1]УСХ!M129+'[1]З С '!M129+[1]РА!M129) -> 80099.8 | N130: =SUM([1]УФ!N129+[1]ОК!N129+[1]РОО!N129+[1]УСХ!N129+'[1]З С '!N129+[1]РА!N129) -> 80099.8 | O130: =SUM([1]УФ!O129+[1]ОК!O129+[1]РОО!O129+[1]УСХ!O129+'[1]З С '!O129+[1]РА!O129) -> 86365.6 | P130: =SUM([1]УФ!P129+[1]ОК!P129+[1]РОО!P129+[1]УСХ!P129+'[1]З С '!P129+[1]РА!P129) -> 93582 | Q130: =SUM([1]УФ!Q129+[1]ОК!Q129+[1]РОО!Q129+[1]УСХ!Q129+'[1]З С '!Q129+[1]РА!Q129) -> 93582 | R130: =SUM([1]УФ!R129+[1]ОК!R129+[1]РОО!R129+[1]УСХ!R129+'[1]З С '!R129+[1]РА!R129) -> 93582
B131: 1.4.1.9. | C131: Субвенции бюджету городского округа город Нижний Новгород на осуществление полномочий в области социальной поддержки и социального обслуживания семей, имеющих детей | D131: 1510 | M131: =SUM([1]УФ!M130+[1]ОК!M130+[1]РОО!M130+[1]УСХ!M130+'[1]З С '!M130+[1]РА!M130) -> 0 | N131: =SUM([1]УФ!N130+[1]ОК!N130+[1]РОО!N130+[1]УСХ!N130+'[1]З С '!N130+[1]РА!N130) -> 0 | O131: =SUM([1]УФ!O130+[1]ОК!O130+[1]РОО!O130+[1]УСХ!O130+'[1]З С '!O130+[1]РА!O130) -> 0 | P131: =SUM([1]УФ!P130+[1]ОК!P130+[1]РОО!P130+[1]УСХ!P130+'[1]З С '!P130+[1]РА!P130) -> 0 | Q131: =SUM([1]УФ!Q130+[1]ОК!Q130+[1]РОО!Q130+[1]УСХ!Q130+'[1]З С '!Q130+[1]РА!Q130) -> 0 | R131: =SUM([1]УФ!R130+[1]ОК!R130+[1]РОО!R130+[1]УСХ!R130+'[1]З С '!R130+[1]РА!R130) -> 0
B132: 1.4.1.10. | C132: Субвенции на осуществление выплаты компенсации части родительской платы за присмотр и уход за ребенком в государственных и муниципальных дошкольных образовательных организациях, частных образовательных организациях, реализующих образовательную программу дошкольного образования, в том числе обеспечение организации выплаты компенсации части родительской платы | D132: 1511 | H132: Закон Нижегородской области от 07.09.2007 N 121-З "О наделении органов местного самоуправления муниципальных районов и городских округов Нижегородской области государственными полномочиями по осуществлению денежных выплат и выплат вознаграждения отдельным категориям граждан" | I132: ст.5 п.3 | J132: 2008-01-01 | K132: 10 | L132: 04 | M132: =SUM([1]УФ!M131+[1]ОК!M131+[1]РОО!M131+[1]УСХ!M131+'[1]З С '!M131+[1]РА!M131) -> 2171 | N132: =SUM([1]УФ!N131+[1]ОК!N131+[1]РОО!N131+[1]УСХ!N131+'[1]З С '!N131+[1]РА!N131) -> 1837.4 | O132: =SUM([1]УФ!O131+[1]ОК!O131+[1]РОО!O131+[1]УСХ!O131+'[1]З С '!O131+[1]РА!O131) -> 2370.2 | P132: =SUM([1]УФ!P131+[1]ОК!P131+[1]РОО!P131+[1]УСХ!P131+'[1]З С '!P131+[1]РА!P131) -> 2352.3 | Q132: =SUM([1]УФ!Q131+[1]ОК!Q131+[1]РОО!Q131+[1]УСХ!Q131+'[1]З С '!Q131+[1]РА!Q131) -> 2352.3 | R132: =SUM([1]УФ!R131+[1]ОК!R131+[1]РОО!R131+[1]УСХ!R131+'[1]З С '!R131+[1]РА!R131) -> 2352.3
B133: 1.4.1.11. | C133: Субвенции на осуществление органами местного самоуправления муниципальных районов полномочий органов государственной власти Нижегородской области по расчету и предоставлению дотаций бюджетам поселений | D133: 1512
B134: 1.4.1.12. | C134: Субвенции на возмещение части процентной ставки по инвестиционным кредитам (займам) на развитие растениеводства, переработки и развития инфраструктуры и логистического обеспечения рынков продукции растениеводства за счет средств областного бюджета | D134: 1513
B135: 1.4.1.13. | C135: Субвенции на возмещение части затрат на приобретение элитных семян за счет средств областного бюджета | D135: 1514 | H135: Закон Нижегородской области от 11.11.2005 N 176-З "О наделении органов местного самоуправления Нижегородской области отдельными государственными полномочиями по поддержке сельскохозяйственного производства" | I135: пр.27 | J135: 2006-01-01 | K135: 04 | L135: 05 | M135: =SUM([1]УФ!M134+[1]ОК!M134+[1]РОО!M134+[1]УСХ!M134+'[1]З С '!M134+[1]РА!M134) -> 1237.4 | N135: =SUM([1]УФ!N134+[1]ОК!N134+[1]РОО!N134+[1]УСХ!N134+'[1]З С '!N134+[1]РА!N134) -> 1237.4 | O135: =SUM([1]УФ!O134+[1]ОК!O134+[1]РОО!O134+[1]УСХ!O134+'[1]З С '!O134+[1]РА!O134) -> 2901.7 | P135: =SUM([1]УФ!P134+[1]ОК!P134+[1]РОО!P134+[1]УСХ!P134+'[1]З С '!P134+[1]РА!P134) -> 2082.3 | Q135: =SUM([1]УФ!Q134+[1]ОК!Q134+[1]РОО!Q134+[1]УСХ!Q134+'[1]З С '!Q134+[1]РА!Q134) -> 2070.7 | R135: =SUM([1]УФ!R134+[1]ОК!R134+[1]РОО!R134+[1]УСХ!R134+'[1]З С '!R134+[1]РА!R134) -> 2057.5
B136: 1.4.1.14. | C136: Субвенции на исполнение полномочий по финансовому обеспечению получения дошкольного, начального общего, основного общего, среднего общего образования в частных общеобразовательных организациях, осуществляющих образовательную деятельность по имеющим государственную аккредитацию основным общеобразовательным программам, посредством предоставления указанным образовательным организациям субсидий на возмещение затрат, включая расходы на оплату труда, приобретение учебников и учебных пособий, средств обучения, игр, игрушек (за исключением расходов на содержание зданий и оплату коммунальных услуг) | D136: 1515
B137: 1.4.1.15. | C137: Субвенции на поддержку племенного животноводства за счет средств областного бюджета | D137: 1516 | H137: Закон Нижегородской области от 11.11.2005 N 176-З "О наделении органов местного самоуправления Нижегородской области отдельными государственными полномочиями по поддержке сельскохозяйственного производства" | J137: 2006-01-01 | K137: 04 | L137: 05 | M137: =SUM([1]УФ!M136+[1]ОК!M136+[1]РОО!M136+[1]УСХ!M136+'[1]З С '!M136+[1]РА!M136) -> 0 | N137: =SUM([1]УФ!N136+[1]ОК!N136+[1]РОО!N136+[1]УСХ!N136+'[1]З С '!N136+[1]РА!N136) -> 0 | O137: =SUM([1]УФ!O136+[1]ОК!O136+[1]РОО!O136+[1]УСХ!O136+'[1]З С '!O136+[1]РА!O136) -> 1632.1 | P137: =SUM([1]УФ!P136+[1]ОК!P136+[1]РОО!P136+[1]УСХ!P136+'[1]З С '!P136+[1]РА!P136) -> 2545.5 | Q137: =SUM([1]УФ!Q136+[1]ОК!Q136+[1]РОО!Q136+[1]УСХ!Q136+'[1]З С '!Q136+[1]РА!Q136) -> 2545.5 | R137: =SUM([1]УФ!R136+[1]ОК!R136+[1]РОО!R136+[1]УСХ!R136+'[1]З С '!R136+[1]РА!R136) -> 2596.1
B138: 1.4.1.16. | C138: Субвенции на возмещение части процентной ставки по долгосрочным, среднесрочным и краткосрочным кредитам, взятым малыми формами хозяйствования, за счет средств областного бюджета | D138: 1517 | H138: Закон Нижегородской области от 11.11.2005 N 176-З "О наделении органов местного самоуправления Нижегородской области отдельными государственными полномочиями по поддержке сельскохозяйственного производства" | J138: 2006-01-01 | K138: 04 | L138: 05 | M138: =SUM([1]УФ!M137+[1]ОК!M137+[1]РОО!M137+[1]УСХ!M137+'[1]З С '!M137+[1]РА!M137) -> 42.1 | N138: =SUM([1]УФ!N137+[1]ОК!N137+[1]РОО!N137+[1]УСХ!N137+'[1]З С '!N137+[1]РА!N137) -> 42.1 | O138: =SUM([1]УФ!O137+[1]ОК!O137+[1]РОО!O137+[1]УСХ!O137+'[1]З С '!O137+[1]РА!O137) -> 25.7 | P138: =SUM([1]УФ!P137+[1]ОК!P137+[1]РОО!P137+[1]УСХ!P137+'[1]З С '!P137+[1]РА!P137) -> 13.2 | Q138: =SUM([1]УФ!Q137+[1]ОК!Q137+[1]РОО!Q137+[1]УСХ!Q137+'[1]З С '!Q137+[1]РА!Q137) -> 0 | R138: =SUM([1]УФ!R137+[1]ОК!R137+[1]РОО!R137+[1]УСХ!R137+'[1]З С '!R137+[1]РА!R137) -> 0
B139: 1.4.1.17. | C139: Субвенции на поддержку племенного крупного рогатого скота молочного направления за счет средств областного бюджета | D139: 1518 | H139: Закон Нижегородской области от 11.11.2005 N 176-З (ред. от 01.06.2016) | I139: ст.1 п.44 | J139: 2006-01-01 | K139: 04 | L139: 05 | M139: =SUM([1]УФ!M138+[1]ОК!M138+[1]РОО!M138+[1]УСХ!M138+'[1]З С '!M138+[1]РА!M138) -> 18864.9 | N139: =SUM([1]УФ!N138+[1]ОК!N138+[1]РОО!N138+[1]УСХ!N138+'[1]З С '!N138+[1]РА!N138) -> 18864.9 | O139: =SUM([1]УФ!O138+[1]ОК!O138+[1]РОО!O138+[1]УСХ!O138+'[1]З С '!O138+[1]РА!O138) -> 0 | P139: =SUM([1]УФ!P138+[1]ОК!P138+[1]РОО!P138+[1]УСХ!P138+'[1]З С '!P138+[1]РА!P138) -> 0 | Q139: =SUM([1]УФ!Q138+[1]ОК!Q138+[1]РОО!Q138+[1]УСХ!Q138+'[1]З С '!Q138+[1]РА!Q138) -> 0 | R139: =SUM([1]УФ!R138+[1]ОК!R138+[1]РОО!R138+[1]УСХ!R138+'[1]З С '!R138+[1]РА!R138) -> 0
B140: 1.4.1.18. | C140: Субвенции на осуществление выплат на возмещение части расходов по приобретению путевок в детские санатории, санаторно-оздоровительные центры (лагеря) круглогодичного действия и иные организации, осуществляющие санаторно-курортное лечение детей в соответствии с имеющейся лицензией, иные организации, осуществляющие санаторно-курортную помощь детям в соответствии с имеющейся лицензией, расположенные на территории Российской Федерации | D140: 1519 | H140: Закон Нижегородской области от 07.09.2007 N 121-З "О наделении органов местного самоуправления муниципальных районов и городских округов Нижегородской области государственными полномочиями по осуществлению денежных выплат и выплат вознаграждения отдельным категориям граждан" | J140: 2008-01-01 | K140: 07 | L140: 07 | M140: =SUM([1]УФ!M139+[1]ОК!M139+[1]РОО!M139+[1]УСХ!M139+'[1]З С '!M139+[1]РА!M139) -> 293.4 | N140: =SUM([1]УФ!N139+[1]ОК!N139+[1]РОО!N139+[1]УСХ!N139+'[1]З С '!N139+[1]РА!N139) -> 293.4 | O140: =SUM([1]УФ!O139+[1]ОК!O139+[1]РОО!O139+[1]УСХ!O139+'[1]З С '!O139+[1]РА!O139) -> 317.8 | P140: =SUM([1]УФ!P139+[1]ОК!P139+[1]РОО!P139+[1]УСХ!P139+'[1]З С '!P139+[1]РА!P139) -> 330.6 | Q140: =SUM([1]УФ!Q139+[1]ОК!Q139+[1]РОО!Q139+[1]УСХ!Q139+'[1]З С '!Q139+[1]РА!Q139) -> 330.6 | R140: =SUM([1]УФ!R139+[1]ОК!R139+[1]РОО!R139+[1]УСХ!R139+'[1]З С '!R139+[1]РА!R139) -> 330.6
B141: 1.4.1.19. | C141: Субвенции на стабилизацию и увеличение поголовья крупного рогатого скота за счет средств областного бюджета | D141: 1520 | H141: Закон Нижегородской области от 11.11.2005 N 176-З "О наделении органов местного самоуправления Нижегородской области отдельными государственными полномочиями по поддержке сельскохозяйственного производства" | J141: 2006-01-01 | K141: 04 | L141: 05
B142: 1.4.1.20. | C142: Субвенции для финансового обеспечения стимулирования производства сельскохозяйственной продукции гражданами, ведущими личное подсобное хозяйство, за счет средств областного бюджета | D142: 1521
B143: 1.4.1.21. | C143: Субвенции на осуществление полномочий по организации проведения мероприятий по предупреждению и ликвидации болезней животных, их лечению, защите населения от болезней, общих для человека и животных, в части обеспечения безопасности сибиреязвенных скотомогильников | D143: 1522
B144: 1.4.1.22. | C144: Субвенции на осуществление полномочий по организации проведения мероприятий по предупреждению и ликвидации болезней животных, их лечению, защите населения от болезней, общих для человека и животных, в части регулирования численности безнадзорных животных | D144: 1523 | H144: Закон Нижегородской области от 03.10.2013 N 129-З "О наделении органов местного самоуправления муниципальных районов и городских округов Нижегородской области отдельными государственными полномочиями по организации проведения мероприятий по предупреждению и ликвидации болезней животных, их лечению, отлову и содержанию безнадзорных животных, защите населения от болезней, общих для человека и животных" | J144: 2013-10-03 | K144: 04 | L144: 05 | M144: =SUM([1]УФ!M143+[1]ОК!M143+[1]РОО!M143+[1]УСХ!M143+'[1]З С '!M143+[1]РА!M143) -> 117.7 | N144: =SUM([1]УФ!N143+[1]ОК!N143+[1]РОО!N143+[1]УСХ!N143+'[1]З С '!N143+[1]РА!N143) -> 117.6 | O144: =SUM([1]УФ!O143+[1]ОК!O143+[1]РОО!O143+[1]УСХ!O143+'[1]З С '!O143+[1]РА!O143) -> 50.2 | P144: =SUM([1]УФ!P143+[1]ОК!P143+[1]РОО!P143+[1]УСХ!P143+'[1]З С '!P143+[1]РА!P143) -> 61 | Q144: =SUM([1]УФ!Q143+[1]ОК!Q143+[1]РОО!Q143+[1]УСХ!Q143+'[1]З С '!Q143+[1]РА!Q143) -> 61 | R144: =SUM([1]УФ!R143+[1]ОК!R143+[1]РОО!R143+[1]УСХ!R143+'[1]З С '!R143+[1]РА!R143) -> 61
B145: 1.4.1.23. | C145: Субвенции на возмещение части затрат сельскохозяйственных товаропроизводителей на уплату страховой премии, начисленной по договору сельскохозяйственного страхования в области растениеводства, за счет средств областного бюджета | D145: 1524
B146: 1.4.1.24. | C146: Субвенции на реализацию экономически значимой программы "Развитие мясного скотоводства в Нижегородской области на 2015-2017 годы" за счет средств областного бюджета | D146: 1525 | H146: Заакон Нижегородской области от 11.11.2005 N 176-З "О наделении органов местного самоуправления Нижегородской области отдельными государственными полномочиями по поддержке сельскохозяйственного производства" | J146: 2005-11-11 | K146: 04 | L146: 05 | M146: =SUM([1]УФ!M145+[1]ОК!M145+[1]РОО!M145+[1]УСХ!M145+'[1]З С '!M145+[1]РА!M145) -> 40784.5 | N146: =SUM([1]УФ!N145+[1]ОК!N145+[1]РОО!N145+[1]УСХ!N145+'[1]З С '!N145+[1]РА!N145) -> 40784.5 | O146: =SUM([1]УФ!O145+[1]ОК!O145+[1]РОО!O145+[1]УСХ!O145+'[1]З С '!O145+[1]РА!O145) -> 1225 | P146: =SUM([1]УФ!P145+[1]ОК!P145+[1]РОО!P145+[1]УСХ!P145+'[1]З С '!P145+[1]РА!P145) -> 1424 | Q146: =SUM([1]УФ!Q145+[1]ОК!Q145+[1]РОО!Q145+[1]УСХ!Q145+'[1]З С '!Q145+[1]РА!Q145) -> 1424 | R146: =SUM([1]УФ!R145+[1]ОК!R145+[1]РОО!R145+[1]УСХ!R145+'[1]З С '!R145+[1]РА!R145) -> 1424
B147: 1.4.1.25. | C147: Субвенции на проведение ремонта жилых помещений, собственниками которых являются дети-сироты и дети, оставшиеся без попечения родителей, а также лица из числа детей-сирот и детей, оставшихся без попечения родителей, либо жилых помещений государственного жилищного фонда, право пользования которыми за ними сохранено, в целях обеспечения надлежащего санитарного и технического состояния этих жилых помещений | D147: 1526
B148: 1.4.1.26. | C148: Субвенция бюджету городского округа город Нижний Новгород на осуществление полномочий по определению перечня должностных лиц органов местного самоуправления, уполномоченных составлять протоколы об административных правонарушениях, и по созданию административных комиссий | D148: 1527
B149: 1.4.1.27. | C149: Субвенция на осуществление полномочий по организации и осуществлению деятельности по опеке и попечительству в отношении совершеннолетних граждан | D149: 1528 | H149: Приказ минфина Нижегородской области от 23.09.2016 N 175 "Об утверждении Порядка планирования бюджетных ассигнований областного бюджета на 2017 год и на плановый период 2018 и 2019 годов" | K149: 10 | L149: 06 | M149: =SUM([1]УФ!M148+[1]ОК!M148+[1]РОО!M148+[1]УСХ!M148+'[1]З С '!M148+[1]РА!M148) -> 381.8 | N149: =SUM([1]УФ!N148+[1]ОК!N148+[1]РОО!N148+[1]УСХ!N148+'[1]З С '!N148+[1]РА!N148) -> 263.3 | O149: =SUM([1]УФ!O148+[1]ОК!O148+[1]РОО!O148+[1]УСХ!O148+'[1]З С '!O148+[1]РА!O148) -> 387 | P149: =SUM([1]УФ!P148+[1]ОК!P148+[1]РОО!P148+[1]УСХ!P148+'[1]З С '!P148+[1]РА!P148) -> 397.9 | Q149: =SUM([1]УФ!Q148+[1]ОК!Q148+[1]РОО!Q148+[1]УСХ!Q148+'[1]З С '!Q148+[1]РА!Q148) -> 397.9 | R149: =SUM([1]УФ!R148+[1]ОК!R148+[1]РОО!R148+[1]УСХ!R148+'[1]З С '!R148+[1]РА!R148) -> 397.9
B150: 1.4.1.28. | C150: Субвенция на оказание несвязанной поддержки сельскохозяйственным товаропроизводителям в области растениеводства за счет средств областного бюджета | D150: 1529 | H150: Закон Нижегородской области от 11.11.2005 N 176-З "О наделении органов местного самоуправления Нижегородской области отдельными государственными полномочиями по поддержке сельскохозяйственного производства" | J150: 2005-11-11 | K150: 04 | L150: 05 | M150: =SUM([1]УФ!M149+[1]ОК!M149+[1]РОО!M149+[1]УСХ!M149+'[1]З С '!M149+[1]РА!M149) -> 3968.1 | N150: =SUM([1]УФ!N149+[1]ОК!N149+[1]РОО!N149+[1]УСХ!N149+'[1]З С '!N149+[1]РА!N149) -> 3968.1 | O150: =SUM([1]УФ!O149+[1]ОК!O149+[1]РОО!O149+[1]УСХ!O149+'[1]З С '!O149+[1]РА!O149) -> 5114.4 | P150: =SUM([1]УФ!P149+[1]ОК!P149+[1]РОО!P149+[1]УСХ!P149+'[1]З С '!P149+[1]РА!P149) -> 6096.8 | Q150: =SUM([1]УФ!Q149+[1]ОК!Q149+[1]РОО!Q149+[1]УСХ!Q149+'[1]З С '!Q149+[1]РА!Q149) -> 6101.7 | R150: =SUM([1]УФ!R149+[1]ОК!R149+[1]РОО!R149+[1]УСХ!R149+'[1]З С '!R149+[1]РА!R149) -> 6044
B151: 1.4.1.29. | C151: Субвенции на обеспечение детей-сирот и детей, оставшихся без попечения родителей, лиц из числа детей-сирот и детей, оставшихся без попечения родителей, жилыми помещениями за счет средств областного бюджета | D151: 1530 | H151: Закон Нижегородской области от 30.09.2008 N 116-З "О наделении органов местного самоуправления муниципальных районов и городских округов Нижегородской области отдельными государственными полномочиями в области жилищных отношений" | J151: 2008-09-30 | K151: 10 | L151: 04 | M151: =SUM([1]УФ!M150+[1]ОК!M150+[1]РОО!M150+[1]УСХ!M150+'[1]З С '!M150+[1]РА!M150) -> 4907.7 | N151: =SUM([1]УФ!N150+[1]ОК!N150+[1]РОО!N150+[1]УСХ!N150+'[1]З С '!N150+[1]РА!N150) -> 4907.7 | O151: =SUM([1]УФ!O150+[1]ОК!O150+[1]РОО!O150+[1]УСХ!O150+'[1]З С '!O150+[1]РА!O150) -> 3513.1 | P151: =SUM([1]УФ!P150+[1]ОК!P150+[1]РОО!P150+[1]УСХ!P150+'[1]З С '!P150+[1]РА!P150) -> 5145 | Q151: =SUM([1]УФ!Q150+[1]ОК!Q150+[1]РОО!Q150+[1]УСХ!Q150+'[1]З С '!Q150+[1]РА!Q150) -> 5277.9 | R151: =SUM([1]УФ!R150+[1]ОК!R150+[1]РОО!R150+[1]УСХ!R150+'[1]З С '!R150+[1]РА!R150) -> 6202.5
B152: 1.4.1.30. | C152: Субвенции на возмещение части затрат на приобретение зерноуборочных и кормоуборочных комбайнов отечественного производства за счет средств областного бюджета | D152: 1531 | H152: Закон Нижегородской области от 03.04.2012 N 30-З "О внесении изменений в Закон Нижегородской области "О наделении органов местного самоуправления Нижегородской области отдельными государственными полномочиями по поддержке сельскохозяйственного производства" | J152: 2012-04-03 | K152: 04 | L152: 05 | M152: =SUM([1]УФ!M151+[1]ОК!M151+[1]РОО!M151+[1]УСХ!M151+'[1]З С '!M151+[1]РА!M151) -> 0 | N152: =SUM([1]УФ!N151+[1]ОК!N151+[1]РОО!N151+[1]УСХ!N151+'[1]З С '!N151+[1]РА!N151) -> 0 | O152: =SUM([1]УФ!O151+[1]ОК!O151+[1]РОО!O151+[1]УСХ!O151+'[1]З С '!O151+[1]РА!O151) -> 2416.5 | P152: =SUM([1]УФ!P151+[1]ОК!P151+[1]РОО!P151+[1]УСХ!P151+'[1]З С '!P151+[1]РА!P151) -> 3689.4 | Q152: =SUM([1]УФ!Q151+[1]ОК!Q151+[1]РОО!Q151+[1]УСХ!Q151+'[1]З С '!Q151+[1]РА!Q151) -> 3945.2 | R152: =SUM([1]УФ!R151+[1]ОК!R151+[1]РОО!R151+[1]УСХ!R151+'[1]З С '!R151+[1]РА!R151) -> 3954.6
B153: 1.4.1.31. | C153: Субвенции на возмещение части процентной ставки по инвестиционным кредитам на строительство и реконструкцию объектов мясного скотоводства за счет средств областного бюджета | D153: 1532
B154: 1.4.1.32. | C154: Субвенции на возмещение части процентной ставки по инвестиционным кредитам (займам) на строительство и реконструкцию объектов для молочного скотоводства за счет средств областного бюджета | D154: 1533
B155: 1.4.1.33. | C155: Субвенции на возмещение части затрат сельскохозяйственных товаропроизводителей на 1 килограмм реализованного и (или) отгруженного на собственную переработку молока за счет средств областного бюджета | D155: 1534 | H155: Закон Нижегородской области от 11.11.2005 N 176-З "О наделении органов местного самоуправления Нижегородской области отдельными государственными полномочиями по поддержке сельскохозяйственного производства" | J155: 2005-11-11 | K155: 04 | L155: 05 | M155: =SUM([1]УФ!M154+[1]ОК!M154+[1]РОО!M154+[1]УСХ!M154+'[1]З С '!M154+[1]РА!M154) -> 4229.7 | N155: =SUM([1]УФ!N154+[1]ОК!N154+[1]РОО!N154+[1]УСХ!N154+'[1]З С '!N154+[1]РА!N154) -> 4229.7 | O155: =SUM([1]УФ!O154+[1]ОК!O154+[1]РОО!O154+[1]УСХ!O154+'[1]З С '!O154+[1]РА!O154) -> 4992.1 | P155: =SUM([1]УФ!P154+[1]ОК!P154+[1]РОО!P154+[1]УСХ!P154+'[1]З С '!P154+[1]РА!P154) -> 5685 | Q155: =SUM([1]УФ!Q154+[1]ОК!Q154+[1]РОО!Q154+[1]УСХ!Q154+'[1]З С '!Q154+[1]РА!Q154) -> 5685 | R155: =SUM([1]УФ!R154+[1]ОК!R154+[1]РОО!R154+[1]УСХ!R154+'[1]З С '!R154+[1]РА!R154) -> 5685
B156: 1.4.1.34. | C156: Субвенции на обеспечение детей-сирот и детей, оставшихся без попечения родителей, лиц из числа детей-сирот и детей, оставшихся без попечения родителей, жилыми помещениями за счет остатков средств федерального бюджета | D156: 1535 | H156: Закон Нижегородской области от 30.09.2008 N 116-З "О наделении органов местного самоуправления муниципальных районов и городских округов Нижегородской области отдельными государственными полномочиями в области жилищных отношений" | J156: 2008-09-30 | K156: 10 | L156: 04 | M156: =SUM([1]УФ!M155+[1]ОК!M155+[1]РОО!M155+[1]УСХ!M155+'[1]З С '!M155+[1]РА!M155) -> 43 | N156: =SUM([1]УФ!N155+[1]ОК!N155+[1]РОО!N155+[1]УСХ!N155+'[1]З С '!N155+[1]РА!N155) -> 43 | O156: =SUM([1]УФ!O155+[1]ОК!O155+[1]РОО!O155+[1]УСХ!O155+'[1]З С '!O155+[1]РА!O155) -> 1460.3 | P156: =SUM([1]УФ!P155+[1]ОК!P155+[1]РОО!P155+[1]УСХ!P155+'[1]З С '!P155+[1]РА!P155) -> 1251.3 | Q156: =SUM([1]УФ!Q155+[1]ОК!Q155+[1]РОО!Q155+[1]УСХ!Q155+'[1]З С '!Q155+[1]РА!Q155) -> 1118.4 | R156: =SUM([1]УФ!R155+[1]ОК!R155+[1]РОО!R155+[1]УСХ!R155+'[1]З С '!R155+[1]РА!R155) -> 1259.9
B157: 1.4.1.35. | C157: Субвенции на обеспечение жильем граждан, страдающих тяжелыми формами хронических заболеваний, перечень которых установлен Правительством РФ | D157: 1536 | H157: Закон Нижегородской области от 30.09.2008 N 116-З (ред. от 06.05.2016) "О наделении органов местного самоуправления муниципальных районов и городских округов Нижегородской области отдельными государственными полномочиями в области жилищных отношений" (принят постановлением ЗС НО от 25.09.2008 N 1221-IV) | I157: Приложение 1.1 | K157: 10 | L157: 03 | M157: =SUM([1]УФ!M156+[1]ОК!M156+[1]РОО!M156+[1]УСХ!M156+'[1]З С '!M156+[1]РА!M156) -> 0 | N157: =SUM([1]УФ!N156+[1]ОК!N156+[1]РОО!N156+[1]УСХ!N156+'[1]З С '!N156+[1]РА!N156) -> 0 | O157: =SUM([1]УФ!O156+[1]ОК!O156+[1]РОО!O156+[1]УСХ!O156+'[1]З С '!O156+[1]РА!O156) -> 0 | P157: =SUM([1]УФ!P156+[1]ОК!P156+[1]РОО!P156+[1]УСХ!P156+'[1]З С '!P156+[1]РА!P156) -> 0 | Q157: =SUM([1]УФ!Q156+[1]ОК!Q156+[1]РОО!Q156+[1]УСХ!Q156+'[1]З С '!Q156+[1]РА!Q156) -> 0 | R157: =SUM([1]УФ!R156+[1]ОК!R156+[1]РОО!R156+[1]УСХ!R156+'[1]З С '!R156+[1]РА!R156) -> 0
B158: 1.4.1.36. | C158: Субвенции на реализацию экономически значимой программы "Развитие мясного скотоводства в Нижегородской области на 2015-2017 годы" за счет средств федерального бюджета | D158: 1537
B159: 1.4.1.37. | C159: Субвенции на возмещение части затрат сельскохозяйственных товаропроизводителей на уплату страховой премии, начисленной по договору сельскохозяйственного страхования в области растениеводства, за счет средств федерального бюджета | D159: 1538
B160: 1.4.1.38. | C160: Субвенции на поддержку племенного крупного рогатого скота мясного направления за счет средств федерального бюджета | D160: 1539
B161: 1.4.1.39. | C161: Субвенции на возмещение части процентной ставки по долгосрочным, среднесрочным и краткосрочным кредитам, взятым малыми формами хозяйствования, за счет средств федерального бюджета | D161: 1540 | H161: Закон Нижегородской области от 11.11.2005 N 176-З "О наделении органов местного самоуправления Нижегородской области отдельными государственными полномочиями по поддержке сельскохозяйственного производства" | J161: 2015-11-11 | K161: 04 | L161: 05 | M161: =SUM([1]УФ!M160+[1]ОК!M160+[1]РОО!M160+[1]УСХ!M160+'[1]З С '!M160+[1]РА!M160) -> 84.6 | N161: =SUM([1]УФ!N160+[1]ОК!N160+[1]РОО!N160+[1]УСХ!N160+'[1]З С '!N160+[1]РА!N160) -> 84.6 | O161: =SUM([1]УФ!O160+[1]ОК!O160+[1]РОО!O160+[1]УСХ!O160+'[1]З С '!O160+[1]РА!O160) -> 50.4 | P161: =SUM([1]УФ!P160+[1]ОК!P160+[1]РОО!P160+[1]УСХ!P160+'[1]З С '!P160+[1]РА!P160) -> 26.5 | Q161: =SUM([1]УФ!Q160+[1]ОК!Q160+[1]РОО!Q160+[1]УСХ!Q160+'[1]З С '!Q160+[1]РА!Q160) -> 0 | R161: =SUM([1]УФ!R160+[1]ОК!R160+[1]РОО!R160+[1]УСХ!R160+'[1]З С '!R160+[1]РА!R160) -> 0
B162: 1.4.1.40. | C162: Субвенции на возмещение части процентной ставки по инвестиционным кредитам (займам) на развитие животноводства, переработки и развития инфраструктуры и логистического обеспечения рынков продукции животноводства за счет средств федерального бюджета | D162: 1541
B163: 1.4.1.41. | C163: Субвенции на возмещение части процентной ставки по инвестиционным кредитам на строительство и реконструкцию объектов мясного скотоводства за счет средств федерального бюджета | D163: 1542
B164: 1.4.1.42. | C164: Субвенции на возмещение части затрат на приобретение элитных семян за счет средств федерального бюджета | D164: 1543 | H164: Закон Нижегородской области от 11.11.2005 N 176-З "О наделении органов местного самоуправления Нижегородской области отдельными государственными полномочиями по поддержке сельскохозяйственного производства" | J164: 2005-11-11 | K164: 04 | L164: 05 | M164: =SUM([1]УФ!M163+[1]ОК!M163+[1]РОО!M163+[1]УСХ!M163+'[1]З С '!M163+[1]РА!M163) -> 2080.4 | N164: =SUM([1]УФ!N163+[1]ОК!N163+[1]РОО!N163+[1]УСХ!N163+'[1]З С '!N163+[1]РА!N163) -> 2080.4 | O164: =SUM([1]УФ!O163+[1]ОК!O163+[1]РОО!O163+[1]УСХ!O163+'[1]З С '!O163+[1]РА!O163) -> 2278.5 | P164: =SUM([1]УФ!P163+[1]ОК!P163+[1]РОО!P163+[1]УСХ!P163+'[1]З С '!P163+[1]РА!P163) -> 2437 | Q164: =SUM([1]УФ!Q163+[1]ОК!Q163+[1]РОО!Q163+[1]УСХ!Q163+'[1]З С '!Q163+[1]РА!Q163) -> 2234 | R164: =SUM([1]УФ!R163+[1]ОК!R163+[1]РОО!R163+[1]УСХ!R163+'[1]З С '!R163+[1]РА!R163) -> 2234
B165: 1.4.1.43. | C165: Субвенции на поддержку племенного животноводства за счет средств федерального бюджета | D165: 1544
B166: 1.4.1.44. | C166: Субвенции на обеспечение жильем отдельных категорий граждан, установленных федеральными законами от 12 января 1995 года №5-ФЗ «О ветеранах» и от 24 ноября 1995 года №181-ФЗ «О социальной защите инвалидов в Российской Федерации» | D166: 1545 | M166: =SUM([1]УФ!M165+[1]ОК!M165+[1]РОО!M165+[1]УСХ!M165+'[1]З С '!M165+[1]РА!M165) -> 0 | N166: =SUM([1]УФ!N165+[1]ОК!N165+[1]РОО!N165+[1]УСХ!N165+'[1]З С '!N165+[1]РА!N165) -> 0 | O166: =SUM([1]УФ!O165+[1]ОК!O165+[1]РОО!O165+[1]УСХ!O165+'[1]З С '!O165+[1]РА!O165) -> 0 | P166: =SUM([1]УФ!P165+[1]ОК!P165+[1]РОО!P165+[1]УСХ!P165+'[1]З С '!P165+[1]РА!P165) -> 944.4 | Q166: =SUM([1]УФ!Q165+[1]ОК!Q165+[1]РОО!Q165+[1]УСХ!Q165+'[1]З С '!Q165+[1]РА!Q165) -> 0 | R166: =SUM([1]УФ!R165+[1]ОК!R165+[1]РОО!R165+[1]УСХ!R165+'[1]З С '!R165+[1]РА!R165) -> 0
B167: 1.4.1.45. | C167: Субвенции на обеспечение жильем отдельных категорий граждан, установленных Федеральным законом от 12 января 1995 года №5-ФЗ "О ветеранах", в соответствии с Указом Президента Российской Федерации от 7 мая 2008 года №714 "Об обеспечении жильем ветеранов Великой Отечественной войны 1941-1945 годов" | D167: 1546 | E167: Федеральным законом от 12 января 1995 года №5-ФЗ "О ветеранах", в соответствии с Указом Президента Российской Федерации от 7 мая 2008 года №714 "Об обеспечении жильем ветеранов Великой Отечественной войны 1941-1945 годов" | K167: 10 | L167: 03 | M167: =SUM([1]УФ!M166+[1]ОК!M166+[1]РОО!M166+[1]УСХ!M166+'[1]З С '!M166+[1]РА!M166) -> 0 | N167: =SUM([1]УФ!N166+[1]ОК!N166+[1]РОО!N166+[1]УСХ!N166+'[1]З С '!N166+[1]РА!N166) -> 0 | O167: =SUM([1]УФ!O166+[1]ОК!O166+[1]РОО!O166+[1]УСХ!O166+'[1]З С '!O166+[1]РА!O166) -> 0 | P167: =SUM([1]УФ!P166+[1]ОК!P166+[1]РОО!P166+[1]УСХ!P166+'[1]З С '!P166+[1]РА!P166) -> 0 | Q167: =SUM([1]УФ!Q166+[1]ОК!Q166+[1]РОО!Q166+[1]УСХ!Q166+'[1]З С '!Q166+[1]РА!Q166) -> 995.4 | R167: =SUM([1]УФ!R166+[1]ОК!R166+[1]РОО!R166+[1]УСХ!R166+'[1]З С '!R166+[1]РА!R166) -> 0
B168: 1.4.1.46. | C168: Субвенции на реализацию переданных исполнительно-распорядительным органам муниципальных образований Нижегородской области государственных полномочий по составлению (изменению, дополнению) списков кандидатов в присяжные заседатели федеральных судов общей юрисдикции в Российской Федерации | D168: 1547 | H168: Закон Нижегородской области от 04.08.2010 N 120-З "Об утверждении методики распределения субвенций бюджетам муниципальных районов и городских округов Нижегородской области на реализацию переданных исполнительно-распорядительным органам муниципальных образований Нижегородской области государственных полномочий по составлению (изменению, дополнению) списков кандидатов в присяжные заседатели федеральных судов общей юрисдикции в Российской Федерации" | J168: 2010-08-04 | K168: 01 | L168: 05 | M168: =SUM([1]УФ!M167+[1]ОК!M167+[1]РОО!M167+[1]УСХ!M167+'[1]З С '!M167+[1]РА!M167) -> 50 | N168: =SUM([1]УФ!N167+[1]ОК!N167+[1]РОО!N167+[1]УСХ!N167+'[1]З С '!N167+[1]РА!N167) -> 50 | O168: =SUM([1]УФ!O167+[1]ОК!O167+[1]РОО!O167+[1]УСХ!O167+'[1]З С '!O167+[1]РА!O167) -> 7.8 | P168: =SUM([1]УФ!P167+[1]ОК!P167+[1]РОО!P167+[1]УСХ!P167+'[1]З С '!P167+[1]РА!P167) -> 13.7 | Q168: =SUM([1]УФ!Q167+[1]ОК!Q167+[1]РОО!Q167+[1]УСХ!Q167+'[1]З С '!Q167+[1]РА!Q167) -> 14.7 | R168: =SUM([1]УФ!R167+[1]ОК!R167+[1]РОО!R167+[1]УСХ!R167+'[1]З С '!R167+[1]РА!R167) -> 60.1
B169: 1.4.1.47. | C169: Субвенции на оказание несвязанной поддержки сельскохозяйственным товаропроизводителям в области растениеводства за счет средств федерального бюджета | D169: 1548 | H169: Закон Нижегородской области от 11.11.2005 N 176-З "О наделении органов местного самоуправления Нижегородской области отдельными государственными полномочиями по поддержке сельскохозяйственного производства" | J169: 2005-11-11 | K169: 04 | L169: 05 | M169: =SUM([1]УФ!M168+[1]ОК!M168+[1]РОО!M168+[1]УСХ!M168+'[1]З С '!M168+[1]РА!M168) -> 7685.2 | N169: =SUM([1]УФ!N168+[1]ОК!N168+[1]РОО!N168+[1]УСХ!N168+'[1]З С '!N168+[1]РА!N168) -> 7685.2 | O169: =SUM([1]УФ!O168+[1]ОК!O168+[1]РОО!O168+[1]УСХ!O168+'[1]З С '!O168+[1]РА!O168) -> 8963.1 | P169: =SUM([1]УФ!P168+[1]ОК!P168+[1]РОО!P168+[1]УСХ!P168+'[1]З С '!P168+[1]РА!P168) -> 8900.3 | Q169: =SUM([1]УФ!Q168+[1]ОК!Q168+[1]РОО!Q168+[1]УСХ!Q168+'[1]З С '!Q168+[1]РА!Q168) -> 8951.4 | R169: =SUM([1]УФ!R168+[1]ОК!R168+[1]РОО!R168+[1]УСХ!R168+'[1]З С '!R168+[1]РА!R168) -> 8963.3
B170: 1.4.1.48. | C170: Субвенции на возмещение части процентной ставки по инвестиционным кредитам (займам) на развитие растениеводства, переработки и развития инфраструктуры и логистического обеспечения рынков продукции растениеводства за счет средств федерального бюджета | D170: 1549
B171: 1.4.1.49. | C171: Субвенции на 1 килограмм реализованного и (или) отгруженного на собственную переработку молока за счет средств федерального бюджета | D171: 1550 | H171: Закон Нижегородской области от 11.11.2005 N 176-З "О наделении органов местного самоуправления Нижегородской области отдельными государственными полномочиями по поддержке сельскохозяйственного производства" | J171: 2005-11-11 | K171: 04 | L171: 05 | M171: =SUM([1]УФ!M170+[1]ОК!M170+[1]РОО!M170+[1]УСХ!M170+'[1]З С '!M170+[1]РА!M170) -> 1835.3 | N171: =SUM([1]УФ!N170+[1]ОК!N170+[1]РОО!N170+[1]УСХ!N170+'[1]З С '!N170+[1]РА!N170) -> 1835.3 | O171: =SUM([1]УФ!O170+[1]ОК!O170+[1]РОО!O170+[1]УСХ!O170+'[1]З С '!O170+[1]РА!O170) -> 2216.4 | P171: =SUM([1]УФ!P170+[1]ОК!P170+[1]РОО!P170+[1]УСХ!P170+'[1]З С '!P170+[1]РА!P170) -> 2463.5 | Q171: =SUM([1]УФ!Q170+[1]ОК!Q170+[1]РОО!Q170+[1]УСХ!Q170+'[1]З С '!Q170+[1]РА!Q170) -> 2463.5 | R171: =SUM([1]УФ!R170+[1]ОК!R170+[1]РОО!R170+[1]УСХ!R170+'[1]З С '!R170+[1]РА!R170) -> 2463.5
B172: 1.4.1.50. | C172: Субвенции на осуществление отдельных полномочий РФ по подготовке и проведению Всероссийской переписи 2016 года | D172: 1551 | H172: Закон Нижегородской области от 02.12.2015 N 178-З "О наделении органов местного самоуправления муниципальных районов и городских округов Нижегородской области отдельными полномочиями Российской Федерации по подготовке и проведению Всероссийской сельскохозяйственной переписи 2016 года" (принят постановлением ЗС НО от 26.11.2015 N 1981-V) | J172: 2016-01-01 | K172: 01 | L172: 13 | M172: =SUM([1]УФ!M171+[1]ОК!M171+[1]РОО!M171+[1]УСХ!M171+'[1]З С '!M171+[1]РА!M171) -> 0 | N172: =SUM([1]УФ!N171+[1]ОК!N171+[1]РОО!N171+[1]УСХ!N171+'[1]З С '!N171+[1]РА!N171) -> 0 | O172: =SUM([1]УФ!O171+[1]ОК!O171+[1]РОО!O171+[1]УСХ!O171+'[1]З С '!O171+[1]РА!O171) -> 0 | P172: =SUM([1]УФ!P171+[1]ОК!P171+[1]РОО!P171+[1]УСХ!P171+'[1]З С '!P171+[1]РА!P171) -> 0 | Q172: =SUM([1]УФ!Q171+[1]ОК!Q171+[1]РОО!Q171+[1]УСХ!Q171+'[1]З С '!Q171+[1]РА!Q171) -> 0 | R172: =SUM([1]УФ!R171+[1]ОК!R171+[1]РОО!R171+[1]УСХ!R171+'[1]З С '!R171+[1]РА!R171) -> 0
B173: 1.4.1.51. | C173: за счет собственных доходов и источников финансирования дефицита бюджета муниципального района, всего | D173: 1552
B174: 1.4.1.52. | C174: Субвенции на исполнение полномочий по финансовому обеспечению двухразовым бесплатным питанием обучающихся с ограниченными возможностями здоровья, не проживающих в муниципальных организациях, осуществляющих образовательную деятельность по адаптированным основным общеобразовательным программам | D174: 1553 | H174: Закон Нижегородской области от 05.10.2017 N 113-З "О внесении изменений в статьи 1 и 5 Закона Нижегородской области "О наделении органов местного самоуправления отдельными государственными полномочиями в области образования" (принят постановлением ЗС НО от 26.09.2017 N 372-VI) | J174: 2018-01-01 | K174: 07 | L174: 02 | M174: =SUM([1]УФ!M173+[1]ОК!M173+[1]РОО!M173+[1]УСХ!M173+'[1]З С '!M173+[1]РА!M173) -> 748.2 | N174: =SUM([1]УФ!N173+[1]ОК!N173+[1]РОО!N173+[1]УСХ!N173+'[1]З С '!N173+[1]РА!N173) -> 318.3 | O174: =SUM([1]УФ!O173+[1]ОК!O173+[1]РОО!O173+[1]УСХ!O173+'[1]З С '!O173+[1]РА!O173) -> 1039.5 | P174: =SUM([1]УФ!P173+[1]ОК!P173+[1]РОО!P173+[1]УСХ!P173+'[1]З С '!P173+[1]РА!P173) -> 1171.1 | Q174: =SUM([1]УФ!Q173+[1]ОК!Q173+[1]РОО!Q173+[1]УСХ!Q173+'[1]З С '!Q173+[1]РА!Q173) -> 1171.1 | R174: =SUM([1]УФ!R173+[1]ОК!R173+[1]РОО!R173+[1]УСХ!R173+'[1]З С '!R173+[1]РА!R173) -> 1171.1
B175: 1.4.1.53. | C175: Субвенции на исполнение полномочий по финансовому обеспечению осуществления присмотра и ухода за детьми-инвалидами, детьми-сиротами и детьми, оставшимися без попечения родителей, а также за детьми с туберкулезной интоксикацией, обучающимися в муниципальных образовательных организациях, реализующих образовательные программы дошкольного образования | D175: 1554 | H175: Закон Нижегородской области от 05.10.2017 N 113-З "О внесении изменений в статьи 1 и 5 Закона Нижегородской области "О наделении органов местного самоуправления отдельными государственными полномочиями в области образования" (принят постановлением ЗС НО от 26.09.2017 N 372-VI) | J175: 2018-01-01 | K175: 07 | L175: 01 | M175: =SUM([1]УФ!M174+[1]ОК!M174+[1]РОО!M174+[1]УСХ!M174+'[1]З С '!M174+[1]РА!M174) -> 29.7 | N175: =SUM([1]УФ!N174+[1]ОК!N174+[1]РОО!N174+[1]УСХ!N174+'[1]З С '!N174+[1]РА!N174) -> 10.8 | O175: =SUM([1]УФ!O174+[1]ОК!O174+[1]РОО!O174+[1]УСХ!O174+'[1]З С '!O174+[1]РА!O174) -> 371.9 | P175: =SUM([1]УФ!P174+[1]ОК!P174+[1]РОО!P174+[1]УСХ!P174+'[1]З С '!P174+[1]РА!P174) -> 483.5 | Q175: =SUM([1]УФ!Q174+[1]ОК!Q174+[1]РОО!Q174+[1]УСХ!Q174+'[1]З С '!Q174+[1]РА!Q174) -> 483.5 | R175: =SUM([1]УФ!R174+[1]ОК!R174+[1]РОО!R174+[1]УСХ!R174+'[1]З С '!R174+[1]РА!R174) -> 483.5
B176: 1.4.1.54 | C176: Субвенции на проведение ремонта жилых помещений, собственниками которых являются дети-сироты и дети, оставшиеся без попечения родителей, а также лица из числа детей-сирот и детей, оставшихся без попечения родителей, либо жилых помещений государственного жилищного фонда, право пользования которыми за ними сохранено, в целях обеспечения надлежащего санитарного и технического состояния этих жилых помещений | D176: 1555 | H176: Постановление Правительства Нижегородской области от 17.06.2011 N 464 (ред. от 24.06.2015) "Об утверждении Положения о порядке расходования субвенций из областного бюджета бюджетам муниципальных районов ..." | K176: 10 | L176: 04 | M176: =SUM([1]УФ!M175+[1]ОК!M175+[1]РОО!M175+[1]УСХ!M175+'[1]З С '!M175+[1]РА!M175) -> 0 | N176: =SUM([1]УФ!N175+[1]ОК!N175+[1]РОО!N175+[1]УСХ!N175+'[1]З С '!N175+[1]РА!N175) -> 0 | O176: =SUM([1]УФ!O175+[1]ОК!O175+[1]РОО!O175+[1]УСХ!O175+'[1]З С '!O175+[1]РА!O175) -> 126.8 | P176: =SUM([1]УФ!P175+[1]ОК!P175+[1]РОО!P175+[1]УСХ!P175+'[1]З С '!P175+[1]РА!P175) -> 0 | Q176: =SUM([1]УФ!Q175+[1]ОК!Q175+[1]РОО!Q175+[1]УСХ!Q175+'[1]З С '!Q175+[1]РА!Q175) -> 74 | R176: =SUM([1]УФ!R175+[1]ОК!R175+[1]РОО!R175+[1]УСХ!R175+'[1]З С '!R175+[1]РА!R175) -> 0
B177: 1.4.1.55 | C177: Субвенции на исполнение полномочий по финансовому обеспечению выплаты компенсации педагогическим работникам за работу по подготовке и проведению государственной итоговой аттестации по образовательным программам основного общего и среднего общего образования | H177: Закон Нижегородской области от 21.10.2005 N 140-З (ред. от 30.04.2019) "О наделении органов местного самоуправления отдельными государственными полномочиями в области образования" (принят постановлением ЗС НО от 06.10.2005 N 1658-III) | K177: 07 | L177: 02 | M177: =SUM([1]УФ!M176+[1]ОК!M176+[1]РОО!M176+[1]УСХ!M176+'[1]З С '!M176+[1]РА!M176) -> 0 | N177: =SUM([1]УФ!N176+[1]ОК!N176+[1]РОО!N176+[1]УСХ!N176+'[1]З С '!N176+[1]РА!N176) -> 0 | O177: =SUM([1]УФ!O176+[1]ОК!O176+[1]РОО!O176+[1]УСХ!O176+'[1]З С '!O176+[1]РА!O176) -> 405.3 | P177: =SUM([1]УФ!P176+[1]ОК!P176+[1]РОО!P176+[1]УСХ!P176+'[1]З С '!P176+[1]РА!P176) -> 300.5 | Q177: =SUM([1]УФ!Q176+[1]ОК!Q176+[1]РОО!Q176+[1]УСХ!Q176+'[1]З С '!Q176+[1]РА!Q176) -> 300.5 | R177: =SUM([1]УФ!R176+[1]ОК!R176+[1]РОО!R176+[1]УСХ!R176+'[1]З С '!R176+[1]РА!R176) -> 300.5
B178: 1.4.1.56 | C178: Субвенция на осуществление полномочий по созданию административных комиссий в Нижегородской области на осуществление отдельных полномочий в области законодательства об административных правонарушениях | H178: Закон Нижегородской области от 01.07.2019 N 61-З "О внесении изменений в Закон Нижегородской области "Об областном бюджете на 2019 год и на плановый период 2020 и 2021 годов" | K178: 05 | L178: 05 | M178: =SUM([1]УФ!M177+[1]ОК!M177+[1]РОО!M177+[1]УСХ!M177+'[1]З С '!M177+[1]РА!M177) -> 0 | N178: =SUM([1]УФ!N177+[1]ОК!N177+[1]РОО!N177+[1]УСХ!N177+'[1]З С '!N177+[1]РА!N177) -> 0 | O178: =SUM([1]УФ!O177+[1]ОК!O177+[1]РОО!O177+[1]УСХ!O177+'[1]З С '!O177+[1]РА!O177) -> 1.3 | P178: =SUM([1]УФ!P177+[1]ОК!P177+[1]РОО!P177+[1]УСХ!P177+'[1]З С '!P177+[1]РА!P177) -> 2.6 | Q178: =SUM([1]УФ!Q177+[1]ОК!Q177+[1]РОО!Q177+[1]УСХ!Q177+'[1]З С '!Q177+[1]РА!Q177) -> 2.6 | R178: =SUM([1]УФ!R177+[1]ОК!R177+[1]РОО!R177+[1]УСХ!R177+'[1]З С '!R177+[1]РА!R177) -> 2.6
B179: 1.4.2.2. | D179: 1602
B180: 1.5. | C180: Расходные обязательства, возникшие в результате принятия нормативных правовых актов муниципального района, заключения соглашений, предусматривающих предоставление межбюджетных трансфертов из бюджета муниципального района другим бюджетам бюджетной системы Российской Федерации, всего | D180: 1700 | E180: х | F180: х | G180: х | H180: х | I180: х | J180: х | K180: х | L180: х | M180: =SUM(M181+M182+M183+M187) -> 65269.3 | N180: 65262.8 | O180: 94234 | P180: 63660.3 | Q180: 57494.4 | R180: 58590
B181: 1.5.1. | C181: по предоставлению дотаций на выравнивание бюджетной обеспеченности городских, сельских поселений, всего | D181: 1701 | E181: Федеральный закон от 06.10.2003 N 131-ФЗ "Об общих принципах организации местного самоуправления в Российской Федерации" | F181: ст.15 п.20 | G181: 06.10.2010 не ограничен | K181: 14 | L181: 01 | M181: =SUM([1]УФ!M180+[1]ОК!M180+[1]РОО!M180+[1]УСХ!M180+'[1]З С '!M180+[1]РА!M180) -> 32679.5 | N181: =SUM([1]УФ!N180+[1]ОК!N180+[1]РОО!N180+[1]УСХ!N180+'[1]З С '!N180+[1]РА!N180) -> 32679.5 | O181: =SUM([1]УФ!O180+[1]ОК!O180+[1]РОО!O180+[1]УСХ!O180+'[1]З С '!O180+[1]РА!O180) -> 33680.6 | P181: =SUM([1]УФ!P180+[1]ОК!P180+[1]РОО!P180+[1]УСХ!P180+'[1]З С '!P180+[1]РА!P180) -> 33739.2 | Q181: =SUM([1]УФ!Q180+[1]ОК!Q180+[1]РОО!Q180+[1]УСХ!Q180+'[1]З С '!Q180+[1]РА!Q180) -> 33739.6 | R181: =SUM([1]УФ!R180+[1]ОК!R180+[1]РОО!R180+[1]УСХ!R180+'[1]З С '!R180+[1]РА!R180) -> 33739.8
B182: 1.5.2. | C182: по предоставлению субсидий в бюджет субъекта Российской Федерации, всего | D182: 1702
B183: 1.5.3. | C183: по предоставлению субвенций в бюджеты городских, сельских поселений, предоставленных из федерального бюджета и (или) бюджета субъекта Российской Федерации, в случае наделения федеральным законом и (или) законом субъекта Российской Федерации органов местного самоуправления муниципального района полномочиями органов государственной власти по расчету и предоставлению субвенций бюджетам городских, сельских поселений, всего | D183: 1703 | E183: х | F183: х | G183: х | H183: х | I183: х | J183: х | K183: х | L183: х | M183: =SUM(M184) -> 793 | N183: 793 | O183: 852.5 | P183: 769.2 | Q183: 779.2 | R183: 817
B184: 1.5.3.1. | C184: на осуществление государственных полномочий Российской Федерации по первичному воинскому учету на территориях, где отсутствуют военные комиссариаты | D184: 1704 | E184: Бюджетный кодекс Российской Федерации от 31.07.1998 N 145-ФЗ | K184: 02 | L184: 03 | M184: =SUM([1]УФ!M183+[1]ОК!M183+[1]РОО!M183+[1]УСХ!M183+'[1]З С '!M183+[1]РА!M183) -> 793 | N184: =SUM([1]УФ!N183+[1]ОК!N183+[1]РОО!N183+[1]УСХ!N183+'[1]З С '!N183+[1]РА!N183) -> 793 | O184: =SUM([1]УФ!O183+[1]ОК!O183+[1]РОО!O183+[1]УСХ!O183+'[1]З С '!O183+[1]РА!O183) -> 852.5 | P184: =SUM([1]УФ!P183+[1]ОК!P183+[1]РОО!P183+[1]УСХ!P183+'[1]З С '!P183+[1]РА!P183) -> 769.2 | Q184: =SUM([1]УФ!Q183+[1]ОК!Q183+[1]РОО!Q183+[1]УСХ!Q183+'[1]З С '!Q183+[1]РА!Q183) -> 779.2 | R184: =SUM([1]УФ!R183+[1]ОК!R183+[1]РОО!R183+[1]УСХ!R183+'[1]З С '!R183+[1]РА!R183) -> 817
B185: … | C185: … | D185: …
B186: 1.5.3.96. | C186: … | D186: 1799
B187: 1.5.4. | C187: по предоставлению иных межбюджетных трансфертов, всего | D187: 1800 | E187: х | F187: х | G187: х | H187: х | I187: х | J187: х | K187: х | L187: х | M187: =SUM(M188) -> 31796.8 | N187: 31790.3 | O187: 59700.9 | P187: 29151.9 | Q187: 22975.6 | R187: 24033.2
B188: 1.5.4.1. | C188: в бюджет городского, сельского поселения в случае заключения соглашения с органами местного самоуправления отдельных поселений, входящих в состав муниципального района, о передаче им осуществления части своих полномочий по решению вопросов местного значения, всего | D188: 1801 | E188: х | F188: х | G188: х | H188: х | I188: х | J188: х | K188: х | L188: х | M188: =SUM(M189+M190+M191+M192+M193) -> 31796.8 | N188: 31790.3 | O188: 59700.9 | P188: 29151.9 | Q188: 22975.6 | R188: 24033.2
B189: 1.5.4.1.1. | C189: на реализацию проекта по поддержке местных инициатив | D189: 1802 | H189: Постановление Правительства Нижегородской области от 22.12.2017 N 945 "О реализации на территории Нижегородской области проекта по поддержке местных инициатив" | J189: 2017-12-22 | K189: 04 05 11 | L189: 09 03 02 | M189: =SUM([1]УФ!M188+[1]ОК!M188+[1]РОО!M188+[1]УСХ!M188+'[1]З С '!M188+[1]РА!M188) -> 5539.1 | N189: =SUM([1]УФ!N188+[1]ОК!N188+[1]РОО!N188+[1]УСХ!N188+'[1]З С '!N188+[1]РА!N188) -> 5532.6 | O189: =SUM([1]УФ!O188+[1]ОК!O188+[1]РОО!O188+[1]УСХ!O188+'[1]З С '!O188+[1]РА!O188) -> 2961.2 | P189: =SUM([1]УФ!P188+[1]ОК!P188+[1]РОО!P188+[1]УСХ!P188+'[1]З С '!P188+[1]РА!P188) -> 0
B190: 1.5.4.1.2 | C190: иные межбюджетные трансферты на поддержку мер по обеспечению сбалансированности бюджетов поселений | D190: … | K190: 14 | L190: 03 | M190: =SUM([1]УФ!M189+[1]ОК!M189+[1]РОО!M189+[1]УСХ!M189+'[1]З С '!M189+[1]РА!M189) -> 21108.1 | N190: =SUM([1]УФ!N189+[1]ОК!N189+[1]РОО!N189+[1]УСХ!N189+'[1]З С '!N189+[1]РА!N189) -> 21108.1 | O190: =SUM([1]УФ!O189+[1]ОК!O189+[1]РОО!O189+[1]УСХ!O189+'[1]З С '!O189+[1]РА!O189) -> 15812.3 | P190: =SUM([1]УФ!P189+[1]ОК!P189+[1]РОО!P189+[1]УСХ!P189+'[1]З С '!P189+[1]РА!P189) -> 18520.3 | Q190: =SUM([1]УФ!Q189+[1]ОК!Q189+[1]РОО!Q189+[1]УСХ!Q189+'[1]З С '!Q189+[1]РА!Q189) -> 12344 | R190: =SUM([1]УФ!R189+[1]ОК!R189+[1]РОО!R189+[1]УСХ!R189+'[1]З С '!R189+[1]РА!R189) -> 13394.7
B191: 1.5.4.1.3 | C191: иных межбюджетных трансфертов | D191: 1899 | K191: 01 03 03 04 05 11 | L191: 04 09 10 09 03 02 | M191: =SUM([1]УФ!M190+[1]ОК!M190+[1]РОО!M190+[1]УСХ!M190+'[1]З С '!M190+[1]РА!M190) -> 3236.5 | N191: =SUM([1]УФ!N190+[1]ОК!N190+[1]РОО!N190+[1]УСХ!N190+'[1]З С '!N190+[1]РА!N190) -> 3236.5 | O191: =SUM([1]УФ!O190+[1]ОК!O190+[1]РОО!O190+[1]УСХ!O190+'[1]З С '!O190+[1]РА!O190) -> 35952.7 | P191: =SUM([1]УФ!P190+[1]ОК!P190+[1]РОО!P190+[1]УСХ!P190+'[1]З С '!P190+[1]РА!P190) -> 0 | Q191: =SUM([1]УФ!Q190+[1]ОК!Q190+[1]РОО!Q190+[1]УСХ!Q190+'[1]З С '!Q190+[1]РА!Q190) -> 0
C192: формирование современной городской среды | K192: 05 | L192: 03 | M192: =SUM([1]УФ!M191) -> 1913.1 | N192: =SUM([1]УФ!N191) -> 1913.1 | O192: =SUM([1]УФ!O191) -> 4974.7 | P192: =SUM([1]УФ!P191) -> 631.6 | Q192: =SUM([1]УФ!Q191) -> 631.6 | R192: =SUM([1]УФ!R191) -> 638.5
C193: ИМБ на компесацию дополнительных расходов, возникших в результате решений, принятых органами власти другого уровня | K193: 05 | L193: 03 | M193: =SUM([1]УФ!M192) -> 0 | N193: =SUM([1]УФ!N192) -> 0 | O193: =SUM([1]УФ!O192) -> 0 | P193: =SUM([1]УФ!P192) -> 10000 | Q193: =SUM([1]УФ!Q192) -> 10000 | R193: =SUM([1]УФ!R192) -> 10000
B194: 1.5.4.2. | C194: … | D194: 1900 | E194: х | F194: х | G194: х | H194: х | I194: х | J194: х | K194: х | L194: х
B195: 1.5.4.2.1. | C195: в иных случаях, не связанных с заключением соглашений, предусмотренных в подпункте 1.5.4.1, всего | D195: 1901
B196: 1.5.4.2.2. | C196: … | D196: 1902
B197: … | C197: … | D197: …
B198: 1.5.1.2.99. | C198: … | D198: 1999
B199: 2. | C199: Расходные обязательства, возникшие в результате принятия нормативных правовых актов городского округа, заключения договоров (соглашений), всего | D199: 2000 | E199: х | F199: х | G199: х | H199: х | I199: х | J199: х | K199: х | L199: х
C200: из них:
B201: 2.1. | C201: Расходные обязательства, возникшие в результате принятия нормативных правовых актов городского округа, заключения договоров (соглашений) в рамках реализации вопросов местного значения городского округа, всего | D201: 2001 | E201: х | F201: х | G201: х | H201: х | I201: х | J201: х | K201: х | L201: х
... 375 more rows

Sheet Лист2

Sheet Лист3
